Workbook

Sheet print
B2: Resident | N2: Expenditure Report
B3: Residential Complex, New Delhi, India
C4: Flat No. | E4: A114 | N4: Residential Complex, New Delhi, India
C5: Name | E5: Deepak Dahiya
C6: Gender | E6: Male | O6: President | R6: ABC Saheb
C7: Address | E7: G T Karnal Byepass | O7: Email | R7: abcdef@gmail.com
C8: City | E8: Karnal, Haryana | O8: Contact No. | R8: 1111111012 0000000123
C9: Pin Code | E9: 122334
G10: Subscription | O10: General Secretary | R10: DEF Sir
C11: ="Year " &TEXT(NOW(),"yyyy") -> Year 2020 | E11: Maint-enance | F11: Electric Bill | G11: Gener- ator Oil | H11: Security | I11: Cleaner | J11: Misc. | K11: Total | O11: Email | R11: defghi@gmail.com
C12: Month | O12: Contact No. | R12: 1
C13: January | E13: 1000 | F13: 500 | G13: 200 | H13: 1500 | I13: 100 | J13: 500 | K13: 3800
C14: February | E14: 1000 | F14: 500 | G14: 200 | H14: 1500 | I14: 100 | J14: 500 | K14: 3800 | O14: ="Year " &TEXT(NOW(),"yyyy") -> Year 2020 | Q14: Income | R14: Maint-enance | S14: Electric Bill | T14: Gener- ator Oil | U14: Security | V14: Cleaner | W14: Misc. | X14: Total
C15: March | E15: 1000 | F15: 500 | G15: 200 | H15: 1500 | I15: 100 | J15: 500 | K15: 3800 | O15: Month | Q15: 10000
C16: April | E16: 1000 | F16: 500 | G16: 200 | H16: 1500 | I16: 100 | J16: 500 | K16: 3800 | O16: January | Q16: 39350 | R16: 10000 | S16: 2000 | T16: 3000 | U16: 3000 | V16: 4000 | W16: 6000 | X16: 11350
C17: May | E17: 1000 | F17: 500 | G17: 200 | H17: 1500 | I17: 100 | J17: 500 | K17: 3800 | O17: February | Q17: 35200 | R17: 20000 | S17: 15000 | X17: 200
C18: June | E18: 1000 | F18: 500 | G18: 200 | H18: 1500 | I18: 100 | J18: 500 | K18: 3800 | O18: March | Q18: 36700 | R18: 35000 | S18: 2000 | X18: -300
C19: July | K19: 0 | O19: April | Q19: 36400 | R19: 40000 | X19: -3600
C20: August | K20: 0 | O20: May | Q20: 35600 | R20: 50000 | X20: -14400
C21: September | K21: 0 | O21: June | Q21: 51020 | R21: 30000 | X21: 3320
C22: October | K22: 0 | O22: July | Q22: 5 | R22: 5000 | X22: -4995
C23: November | K23: 0 | O23: August | Q23: 34 | R23: 1000 | X23: -966
C24: December | K24: 0 | O24: September | Q24: 0 | S24: 200 | X24: -200
C25: Total | E25: 6000 | F25: 3000 | G25: 1200 | H25: 9000 | I25: 600 | J25: 3000 | K25: 22800 | O25: October | Q25: 0 | X25: 0
O26: November | Q26: 0 | X26: 0
O27: December | Q27: 0 | X27: 0
K28: Mohit Batham Sir | O28: Total | Q28: 244309 | R28: 191000 | S28: 19200 | T28: 3000 | U28: 3000 | V28: 4000 | W28: 6000 | X28: 18109
K29: President
X31: ABC Saheb
X32: President

Sheet searchdata
A1: Sl. No. | B1: Block | C1: Number | D1: Name | E1: Gender | F1: Address | G1: City | H1: Pin Code | I1: Last updated on | AA1: uke | AB1: irk | AC1: 'kgj | AD1: fiu dksM | BA1: TxtIncJanMaintenance | BB1: TxtIncJanElectBill | BC1: TxtIncJanGenerator | BD1: TxtIncJanSecurity | BE1: TxtIncJanCleaner | BF1: TxtIncJanMisc | BG1: TxtIncFebMaintenance | BH1: TxtIncFebElectBill | BI1: TxtIncFebGenerator | BJ1: TxtIncFebSecurity | BK1: TxtIncFebCleaner | BL1: TxtIncFebMisc | BM1: TxtIncMarMaintenance | BN1: TxtIncMarElectBill | BO1: TxtIncMarGenerator | BP1: TxtIncMarSecurity | BQ1: TxtIncMarCleaner | BR1: TxtIncMarMisc | BS1: TxtIncAprMaintenance | BT1: TxtIncAprElectBill | BU1: TxtIncAprGenerator | BV1: TxtIncAprSecurity | BW1: TxtIncAprCleaner | BX1: TxtIncAprMisc | BY1: TxtIncMayMaintenance | BZ1: TxtIncMayElectBill | CA1: TxtIncMayGenerator | CB1: TxtIncMaySecurity | CC1: TxtIncMayCleaner | CD1: TxtIncMayMisc | CE1: TxtIncJunMaintenance | CF1: TxtIncJunElectBill | CG1: TxtIncJunGenerator | CH1: TxtIncJunSecurity | CI1: TxtIncJunCleaner | CJ1: Jun. Misc | CK1: Jul. Maintenance | CL1: Jul. ElectBill | CM1: Jul. Generator | CN1: Jul. Security | CO1: Jul. Cleaner | CP1: Jul. Misc | CQ1: Aug. Maintenance | CR1: Aug. ElectBill | CS1: Aug. Generator | CT1: Aug. Security | CU1: Aug. Cleaner | CV1: Aug. Misc | CW1: Sep. Maintenance | CX1: Sep. ElectBill | CY1: Sep. Generator | CZ1: Sep. Security | DA1: Sep. Cleaner | DB1: Sep. Misc | DC1: Oct. Maintenance | DD1: Oct. ElectBill | DE1: Oct. Generator | DF1: Oct. Security | DG1: Oct. Cleaner | DH1: Oct. Misc | DI1: Nov. Maintenance | DJ1: Nov. ElectBill | DK1: Nov. Generator | DL1: Nov. Security | DM1: Nov. Cleaner | DN1: Nov. Misc | DO1: Dec. Maintenance | DP1: Dec. ElectBill | DQ1: Dec. Generator | DR1: Dec. Security | DS1: Dec. Cleaner | DT1: Dec. Misc | EA1: Total Mainte nance | EB1: Total Electric Bill | EC1: Total Generator | ED1: Total Security | EE1: Total Cleaner | EF1: Total Misc | EL1: Income Jan | EM1: Income Feb | EN1: Income Mar | EO1: Income Apr | EP1: Income May | EQ1: Income Jun | ER1: Income Jul | ES1: Income Aug | ET1: Income Sep | EU1: Income Oct | EV1: Income Nov | EW1: Income Dec | FA1: Total
A2: 4 | B2: B | C2: 122 | D2: Manish Kumar Meena | E2: Male | F2: Pink City | G2: Jaipur | H2: 320620 | I2: 2020-06-06T09:02:08 | AA2: euh"k dqekj ehuk | AB2: fiad flVh | AC2: t;iqj | AD2: 320620 | BA2: 1000 | BB2: 500 | BC2: 200 | BD2: 1000 | BE2: 500 | BF2: 200 | BG2: 1000 | BH2: 500 | BI2: 200 | BJ2: 1000 | BK2: 500 | BL2: 200 | BM2: 1000 | BN2: 500 | BO2: 200 | BP2: 1000 | BQ2: 500 | BR2: 200 | BS2: 1000 | BT2: 500 | BU2: 200 | BV2: 1000 | BW2: 500 | BX2: 200 | BY2: 1000 | BZ2: 500 | CA2: 200 | CB2: 1000 | CC2: 500 | CD2: 200 | CE2: 1000 | CF2: 500 | CG2: 200 | CH2: 1000 | CI2: 500 | CJ2: 200 | CN2: 5 | CT2: 34 | EA2: 6000 | EB2: 3000 | EC2: 1200 | ED2: 6039 | EE2: 3000 | EF2: 1200 | EL2: 3400 | EM2: 3400 | EN2: 3400 | EO2: 3400 | EP2: 3400 | EQ2: 3400 | ER2: 5 | ES2: 34 | ET2: 0 | EU2: 0 | EV2: 0 | EW2: 0 | FA2: 20439
A3: 9 | B3: B | C3: 112 | D3: Ranjit Singh | E3: Male | F3: Airforce Station Area | G3: Suratgarh, Rajasthan | H3: 302423 | I3: 2020-05-06T06:57:35 | AA3: jathr flag | AB3: ,;jQkslZ LVs'ku ,fj;k | AC3: lqjrx<+] jktLFkku | AD3: 302423 | BA3: 1000 | BB3: 1000 | BC3: 500 | BD3: 1500 | BE3: 200 | BF3: 100 | BG3: 1000 | BH3: 1000 | BI3: 500 | BJ3: 1500 | BK3: 200 | BL3: 100 | BM3: 1000 | BN3: 1000 | BO3: 500 | BP3: 1500 | BQ3: 200 | BR3: 100 | BS3: 1000 | BT3: 1000 | BU3: 500 | BV3: 1500 | BW3: 200 | BX3: 100 | BY3: 1000 | BZ3: 1000 | CA3: 500 | CB3: 1500 | CC3: 200 | CD3: 100 | CE3: 10 | CI3: 200 | EA3: 5010 | EB3: 5000 | EC3: 2500 | ED3: 7500 | EE3: 1200 | EF3: 500 | EL3: 4300 | EM3: 4300 | EN3: 4300 | EO3: 4300 | EP3: 4300 | EQ3: 210 | ER3: 0 | ES3: 0 | ET3: 0 | EU3: 0 | EV3: 0 | EW3: 0 | FA3: 21710
A4: 16 | B4: A | C4: 304 | D4: Prem Singhania | E4: Male | F4: Sector-128 | G4: Bahadurgarh, Punjab | H4: 132102 | I4: 2020-05-06T19:33:28 | AD4: 132102 | EA4: 0 | EB4: 0 | EC4: 0 | ED4: 0 | EE4: 0 | EF4: 0 | EL4: 0 | EM4: 0 | EN4: 0 | EO4: 0 | EP4: 0 | EQ4: 0 | ER4: 0 | ES4: 0 | ET4: 0 | EU4: 0 | EV4: 0 | EW4: 0 | FA4: 0
D5: Total | EA5: 11010 | EB5: 8000 | EC5: 3700 | ED5: 13539 | EE5: 4200 | EF5: 1700 | EL5: 7700 | EM5: 7700 | EN5: 7700 | EO5: 7700 | EP5: 7700 | EQ5: 3610 | ER5: 5 | ES5: 34 | ET5: 0 | EU5: 0 | EV5: 0 | EW5: 0

Sheet dues
A1: Sl. No. | B1: Block | C1: Number | D1: Name | E1: Gender | F1: Address | G1: City | H1: Pin Code | I1: Last updated on | AA1: uke | AB1: irk | AC1: 'kgj | AD1: fiu dksM | BA1: TxtIncJanMaintenance | BB1: TxtIncJanElectBill | BC1: TxtIncJanGenerator | BD1: TxtIncJanSecurity | BE1: TxtIncJanCleaner | BF1: TxtIncJanMisc | BG1: TxtIncFebMaintenance | BH1: TxtIncFebElectBill | BI1: TxtIncFebGenerator | BJ1: TxtIncFebSecurity | BK1: TxtIncFebCleaner | BL1: TxtIncFebMisc | BM1: TxtIncMarMaintenance | BN1: TxtIncMarElectBill | BO1: TxtIncMarGenerator | BP1: TxtIncMarSecurity | BQ1: TxtIncMarCleaner | BR1: TxtIncMarMisc | BS1: TxtIncAprMaintenance | BT1: TxtIncAprElectBill | BU1: TxtIncAprGenerator | BV1: TxtIncAprSecurity | BW1: TxtIncAprCleaner | BX1: TxtIncAprMisc | BY1: TxtIncMayMaintenance | BZ1: TxtIncMayElectBill | CA1: TxtIncMayGenerator | CB1: TxtIncMaySecurity | CC1: TxtIncMayCleaner | CD1: TxtIncMayMisc | CE1: TxtIncJunMaintenance | CF1: TxtIncJunElectBill | CG1: TxtIncJunGenerator | CH1: TxtIncJunSecurity | CI1: TxtIncJunCleaner | CJ1: Jun. Misc | CK1: Jul. Maintenance | CL1: Jul. ElectBill | CM1: Jul. Generator | CN1: Jul. Security | CO1: Jul. Cleaner | CP1: Jul. Misc | CQ1: Aug. Maintenance | CR1: Aug. ElectBill | CS1: Aug. Generator | CT1: Aug. Security | CU1: Aug. Cleaner | CV1: Aug. Misc | CW1: Sep. Maintenance | CX1: Sep. ElectBill | CY1: Sep. Generator | CZ1: Sep. Security | DA1: Sep. Cleaner | DB1: Sep. Misc | DC1: Oct. Maintenance | DD1: Oct. ElectBill | DE1: Oct. Generator | DF1: Oct. Security | DG1: Oct. Cleaner | DH1: Oct. Misc | DI1: Nov. Maintenance | DJ1: Nov. ElectBill | DK1: Nov. Generator | DL1: Nov. Security | DM1: Nov. Cleaner | DN1: Nov. Misc | DO1: Dec. Maintenance | DP1: Dec. ElectBill | DQ1: Dec. Generator | DR1: Dec. Security | DS1: Dec. Cleaner | DT1: Dec. Misc | EA1: Total Mainte nance | EB1: Total Electric Bill | EC1: Total Generator | ED1: Total Security | EE1: Total Cleaner | EF1: Total Misc | EL1: Income Jan | EM1: Income Feb | EN1: Income Mar | EO1: Income Apr | EP1: Income May | EQ1: Income Jun | ER1: Income Jul | ES1: Income Aug | ET1: Income Sep | EU1: Income Oct | EV1: Income Nov | EW1: Income Dec | FA1: Total
A2: 4 | B2: B | C2: 122 | D2: Manish Kumar Meena | E2: Male | F2: Pink City | G2: Jaipur | H2: 320620 | I2: 2020-06-06T09:02:08 | AA2: euh"k dqekj ehuk | AB2: fiad flVh | AC2: t;iqj | AD2: 320620 | BA2: 1000 | BB2: 500 | BC2: 200 | BD2: 1000 | BE2: 500 | BF2: 200 | BG2: 1000 | BH2: 500 | BI2: 200 | BJ2: 1000 | BK2: 500 | BL2: 200 | BM2: 1000 | BN2: 500 | BO2: 200 | BP2: 1000 | BQ2: 500 | BR2: 200 | BS2: 1000 | BT2: 500 | BU2: 200 | BV2: 1000 | BW2: 500 | BX2: 200 | BY2: 1000 | BZ2: 500 | CA2: 200 | CB2: 1000 | CC2: 500 | CD2: 200 | CE2: 1000 | CF2: 500 | CG2: 200 | CH2: 1000 | CI2: 500 | CJ2: 200 | CN2: 5 | CT2: 34 | EA2: 6000 | EB2: 3000 | EC2: 1200 | ED2: 6039 | EE2: 3000 | EF2: 1200 | EL2: 3400 | EM2: 3400 | EN2: 3400 | EO2: 3400 | EP2: 3400 | EQ2: 3400 | ER2: 5 | ES2: 34 | ET2: 0 | EU2: 0 | EV2: 0 | EW2: 0 | FA2: 20439
A3: 9 | B3: B | C3: 112 | D3: Ranjit Singh | E3: Male | F3: Airforce Station Area | G3: Suratgarh, Rajasthan | H3: 302423 | I3: 2020-05-06T06:57:35 | AA3: jathr flag | AB3: ,;jQkslZ LVs'ku ,fj;k | AC3: lqjrx<+] jktLFkku | AD3: 302423 | BA3: 1000 | BB3: 1000 | BC3: 500 | BD3: 1500 | BE3: 200 | BF3: 100 | BG3: 1000 | BH3: 1000 | BI3: 500 | BJ3: 1500 | BK3: 200 | BL3: 100 | BM3: 1000 | BN3: 1000 | BO3: 500 | BP3: 1500 | BQ3: 200 | BR3: 100 | BS3: 1000 | BT3: 1000 | BU3: 500 | BV3: 1500 | BW3: 200 | BX3: 100 | BY3: 1000 | BZ3: 1000 | CA3: 500 | CB3: 1500 | CC3: 200 | CD3: 100 | CE3: 10 | CI3: 200 | EA3: 5010 | EB3: 5000 | EC3: 2500 | ED3: 7500 | EE3: 1200 | EF3: 500 | EL3: 4300 | EM3: 4300 | EN3: 4300 | EO3: 4300 | EP3: 4300 | EQ3: 210 | ER3: 0 | ES3: 0 | ET3: 0 | EU3: 0 | EV3: 0 | EW3: 0 | FA3: 21710
A4: 16 | B4: A | C4: 304 | D4: Prem Singhania | E4: Male | F4: Sector-128 | G4: Bahadurgarh, Punjab | H4: 132102 | I4: 2020-05-06T19:33:28 | AD4: 132102 | EA4: 0 | EB4: 0 | EC4: 0 | ED4: 0 | EE4: 0 | EF4: 0 | EL4: 0 | EM4: 0 | EN4: 0 | EO4: 0 | EP4: 0 | EQ4: 0 | ER4: 0 | ES4: 0 | ET4: 0 | EU4: 0 | EV4: 0 | EW4: 0 | FA4: 0
D5: Total | EA5: 11010 | EB5: 8000 | EC5: 3700 | ED5: 13539 | EE5: 4200 | EF5: 1700 | EL5: 7700 | EM5: 7700 | EN5: 7700 | EO5: 7700 | EP5: 7700 | EQ5: 3610 | ER5: 5 | ES5: 34 | ET5: 0 | EU5: 0 | EV5: 0 | EW5: 0

Sheet bksingh
A1: Sl. No. | B1: Block | C1: Number | D1: Name | E1: Gender | F1: Address | G1: City | H1: Pin Code | I1: Last updated on | AA1: uke | AB1: irk | AC1: 'kgj | AD1: fiu dksM | BA1: TxtIncJanMaintenance | BB1: TxtIncJanElectBill | BC1: TxtIncJanGenerator | BD1: TxtIncJanSecurity | BE1: TxtIncJanCleaner | BF1: TxtIncJanMisc | BG1: TxtIncFebMaintenance | BH1: TxtIncFebElectBill | BI1: TxtIncFebGenerator | BJ1: TxtIncFebSecurity | BK1: TxtIncFebCleaner | BL1: TxtIncFebMisc | BM1: TxtIncMarMaintenance | BN1: TxtIncMarElectBill | BO1: TxtIncMarGenerator | BP1: TxtIncMarSecurity | BQ1: TxtIncMarCleaner | BR1: TxtIncMarMisc | BS1: TxtIncAprMaintenance | BT1: TxtIncAprElectBill | BU1: TxtIncAprGenerator | BV1: TxtIncAprSecurity | BW1: TxtIncAprCleaner | BX1: TxtIncAprMisc | BY1: TxtIncMayMaintenance | BZ1: TxtIncMayElectBill | CA1: TxtIncMayGenerator | CB1: TxtIncMaySecurity | CC1: TxtIncMayCleaner | CD1: TxtIncMayMisc | CE1: TxtIncJunMaintenance | CF1: TxtIncJunElectBill | CG1: TxtIncJunGenerator | CH1: TxtIncJunSecurity | CI1: TxtIncJunCleaner | CJ1: Jun. Misc | CK1: Jul. Maintenance | CL1: Jul. ElectBill | CM1: Jul. Generator | CN1: Jul. Security | CO1: Jul. Cleaner | CP1: Jul. Misc | CQ1: Aug. Maintenance | CR1: Aug. ElectBill | CS1: Aug. Generator | CT1: Aug. Security | CU1: Aug. Cleaner | CV1: Aug. Misc | CW1: Sep. Maintenance | CX1: Sep. ElectBill | CY1: Sep. Generator | CZ1: Sep. Security | DA1: Sep. Cleaner | DB1: Sep. Misc | DC1: Oct. Maintenance | DD1: Oct. ElectBill | DE1: Oct. Generator | DF1: Oct. Security | DG1: Oct. Cleaner | DH1: Oct. Misc | DI1: Nov. Maintenance | DJ1: Nov. ElectBill | DK1: Nov. Generator | DL1: Nov. Security | DM1: Nov. Cleaner | DN1: Nov. Misc | DO1: Dec. Maintenance | DP1: Dec. ElectBill | DQ1: Dec. Generator | DR1: Dec. Security | DS1: Dec. Cleaner | DT1: Dec. Misc | EA1: Total Mainte nance | EB1: Total Electric Bill | EC1: Total Generator | ED1: Total Security | EE1: Total Cleaner | EF1: Total Misc | EL1: Income Jan | EM1: Income Feb | EN1: Income Mar | EO1: Income Apr | EP1: Income May | EQ1: Income Jun | ER1: Income Jul | ES1: Income Aug | ET1: Income Sep | EU1: Income Oct | EV1: Income Nov | EW1: Income Dec | FA1: Total | FB1: Subscription Slab | FC1: Maintenance month count Jan | FD1: Maintenance month count feb | FE1: Maintenance month count mar | FF1: Maintenance month count apr | FG1: Maintenance month count may | FH1: Maintenance month count jun | FI1: Maintenance month count Jul | FJ1: Maintenance month count aug | FK1: Maintenance month count sep | FL1: Maintenance month count oct | FM1: Maintenance month count nov | FN1: Maintenance month count dec | FO1: Month for report
A2: =ROW()-1 -> 1 | B2: B | C2: 107 | D2: ABC Saheb | E2: Male | F2: ABC Enclave | G2: Ghaziabad, Uttar Pradesh | H2: 201301 | I2: 09-06-2020 07:42:08 | AC2: xkft;kckn] mRrj izns'k | AD2: 201301 | BA2: 500 | BB2: 200 | BC2: 100 | BD2: 1500 | BE2: 100 | BF2: 500 | BG2: 500 | BH2: 200 | BI2: 0 | BJ2: 1500 | BK2: 100 | BL2: 500 | BM2: 500 | BN2: 200 | BO2: 100 | BP2: 1500 | BQ2: 100 | BR2: 500 | BS2: 500 | BT2: 200 | BU2: 100 | BV2: 1500 | BW2: 100 | BX2: 500 | BY2: 500 | BZ2: 200 | CA2: 100 | CB2: 1500 | CC2: 100 | CD2: 500 | CE2: 500 | CF2: 200 | CG2: 100 | CH2: 1500 | CI2: 100 | CJ2: 500 | EA2: =BA2+BG2+BM2+BS2+BY2+CE2+CK2+CQ2+CW2+DC2+DI2+DO2 -> 3000 | EB2: =BB2+BH2+BN2+BT2+BZ2+CF2+CL2+CR2+CX2+DD2+DJ2+DP2 -> 1200 | EC2: =BC2+BI2+BO2+BU2+CA2+CG2+CM2+CS2+CY2+DE2+DK2+DQ2 -> 500 | ED2: =BD2+BJ2+BP2+BV2+CB2+CH2+CN2+CT2+CZ2+DF2+DL2+DR2 -> 9000 | EE2: =BE2+BK2+BQ2+BW2+CC2+CI2+CO2+CU2+DA2+DG2+DM2+DS2 -> 600 | EF2: =BF2+BL2+BR2+BX2+CD2+CJ2+CP2+CV2+DB2+DH2+DN2+DT2 -> 3000 | EL2: =SUM(BA2:BF2) -> 2900 | EM2: =SUM(BG2:BL2) -> 2800 | EN2: =SUM(BM2:BR2) -> 2900 | EO2: =SUM(BS2:BX2) -> 2900 | EP2: =SUM(BY2:CD2) -> 2900 | EQ2: =SUM(CE2:CJ2) -> 2900 | ER2: =SUM(CK2:CP2) -> 0 | ES2: =SUM(CQ2:CV2) -> 0 | ET2: =SUM(CW2:DB2) -> 0 | EU2: =SUM(DC2:DH2) -> 0 | EV2: =SUM(DI2:DN2) -> 0 | EW2: =SUM(DO2:DT2) -> 0 | FA2: =SUM(EL2:EZ2) -> 17300 | FB2: 33000
A3: =ROW()-1 -> 2 | B3: B | C3: 207 | D3: DEF Khurana | E3: Male | F3: Sector-12 | G3: Chandigarh | H3: 121212 | I3: 09-06-2020 07:42:37 | AA3: Mh b ,Q [kqjkuk | AB3: lsDVj&12 | AC3: paMhx<+ | AD3: 121212 | BA3: 500 | BB3: 400 | BC3: 300 | BD3: 200 | BE3: 100 | BF3: 50 | BG3: 500 | BH3: 400 | BI3: 300 | BJ3: 200 | BK3: 100 | BL3: 100 | BM3: 400 | BN3: 300 | BO3: 200 | BP3: 100 | BQ3: 500 | BR3: 200 | BS3: 300 | BT3: 200 | BU3: 100 | BV3: 500 | BW3: 200 | BX3: 100 | BY3: 100 | BZ3: 100 | CA3: 100 | CB3: 100 | CC3: 100 | CD3: 100 | CE3: 200 | CF3: 200 | CG3: 200 | CH3: 200 | CI3: 200 | CJ3: 200 | EA3: 2000 | EB3: 1600 | EC3: 1200 | ED3: 1300 | EE3: 1200 | EF3: 750 | EL3: 1550 | EM3: 1600 | EN3: 1700 | EO3: 1400 | EP3: 600 | EQ3: 1200 | ER3: 0 | ES3: 0 | ET3: 0 | EU3: 0 | EV3: 0 | EW3: 0 | FA3: 8050 | FB3: 33000
A4: =ROW()-1 -> 3 | B4: B | C4: 123 | D4: Deepak Kanojia | E4: Male | F4: Sector-181 | G4: Gurugram | H4: 122001 | I4: 2020-03-06T07:46:34 | AA4: nhid duksft;k | AB4: lsDVj&181 | AC4: xq:xzke | AD4: 122001 | BA4: 500 | BB4: 200 | BC4: 100 | BD4: 300 | BE4: 200 | BF4: 200 | BG4: 500 | BH4: 200 | BI4: 100 | BJ4: 300 | BK4: 200 | BL4: 200 | BM4: 500 | BN4: 200 | BO4: 100 | BP4: 300 | BQ4: 200 | BR4: 200 | BS4: 500 | BT4: 200 | BU4: 100 | BV4: 300 | BW4: 200 | BX4: 200 | BY4: 500 | BZ4: 200 | CA4: 100 | CB4: 300 | CC4: 200 | CD4: 200 | CE4: 500 | CF4: 200 | CG4: 100 | CH4: 300 | CI4: 200 | CJ4: 200 | EA4: 3000 | EB4: 1200 | EC4: 600 | ED4: 1800 | EE4: 1200 | EF4: 1200 | EL4: 1500 | EM4: 1500 | EN4: 1500 | EO4: 1500 | EP4: 1500 | EQ4: 1500 | ER4: 0 | ES4: 0 | ET4: 0 | EU4: 0 | EV4: 0 | EW4: 0 | FA4: 9000 | FB4: 33000
A5: =ROW()-1 -> 4 | B5: B | C5: 122 | D5: Manish Kumar Meena | E5: Male | F5: Pink City | G5: Jaipur | H5: 320620 | I5: 2020-06-06T09:02:08 | AA5: euh"k dqekj ehuk | AB5: fiad flVh | AC5: t;iqj | AD5: 320620 | BA5: 1000 | BB5: 500 | BC5: 200 | BD5: 1000 | BE5: 500 | BF5: 200 | BG5: 1000 | BH5: 500 | BI5: 200 | BJ5: 1000 | BK5: 500 | BL5: 200 | BM5: 1000 | BN5: 500 | BO5: 200 | BP5: 1000 | BQ5: 500 | BR5: 200 | BS5: 1000 | BT5: 500 | BU5: 200 | BV5: 1000 | BW5: 500 | BX5: 200 | BY5: 1000 | BZ5: 500 | CA5: 200 | CB5: 1000 | CC5: 500 | CD5: 200 | CE5: 1000 | CF5: 500 | CG5: 200 | CH5: 1000 | CI5: 500 | CJ5: 200 | CN5: 5 | CT5: 34 | EA5: 6000 | EB5: 3000 | EC5: 1200 | ED5: 6039 | EE5: 3000 | EF5: 1200 | EL5: =SUM(BA5:BF5) -> 3400 | EM5: =SUM(BG5:BL5) -> 3400 | EN5: =SUM(BM5:BR5) -> 3400 | EO5: =SUM(BS5:BX5) -> 3400 | EP5: =SUM(BY5:CD5) -> 3400 | EQ5: =SUM(CE5:CJ5) -> 3400 | ER5: =SUM(CK5:CP5) -> 5 | ES5: =SUM(CQ5:CV5) -> 34 | ET5: =SUM(CW5:DB5) -> 0 | EU5: =SUM(DC5:DH5) -> 0 | EV5: =SUM(DI5:DN5) -> 0 | EW5: =SUM(DO5:DT5) -> 0 | FA5: =SUM(EL5:EZ5) -> 20439 | FB5: 33000
A6: =ROW()-1 -> 5 | B6: B | C6: 111 | D6: Suresh Kumar Goril | E6: Male | F6: Pul Prahladpur, Surajkund | G6: Faridabad, Haryana | H6: 122012 | I6: 2020-05-06T06:50:47 | AA6: lqjs'k dqekj xksfjy | AB6: iqy izgykniqj | AC6: Qjhnkckn] gfj;k.kk | AD6: 122012 | BA6: 500 | BB6: 500 | BC6: 200 | BD6: 300 | BE6: 100 | BG6: 200 | BH6: 200 | BJ6: 100 | BL6: 200 | BM6: 500 | BN6: 500 | BO6: 200 | BP6: 300 | BQ6: 100 | BR6: 100 | BS6: 500 | BT6: 500 | BU6: 200 | BV6: 300 | BW6: 100 | BX6: 100 | BY6: 500 | BZ6: 500 | CA6: 200 | CB6: 300 | CC6: 100 | CD6: 100 | CE6: 500 | CF6: 500 | CG6: 200 | CH6: 300 | CI6: 100 | CJ6: 100 | EA6: 2700 | EB6: 2700 | EC6: 1000 | ED6: 1600 | EE6: 500 | EF6: 600 | EL6: 1600 | EM6: 700 | EN6: 1700 | EO6: 1700 | EP6: 1700 | EQ6: 1700 | ER6: 0 | ES6: 0 | ET6: 0 | EU6: 0 | EV6: 0 | EW6: 0 | FA6: 9100 | FB6: 33000
A7: 6 | B7: A | C7: 112 | D7: Samir Chandra Bapat | E7: Male | F7: Sonepat Byepass | G7: Sonepat, Haryana | H7: 122023 | I7: 2020-05-06T06:53:10 | AA7: lehj pUnzk ckir | AB7: lksuhir ckbZikl | AC7: lksuhir] gfj;k.kk | AD7: 122023 | BA7: 500 | BB7: 500 | BC7: 200 | BD7: 300 | BE7: 100 | BF7: 500 | BG7: 200 | BH7: 200 | BI7: 300 | BJ7: 100 | BK7: 500 | BL7: 200 | BM7: 500 | BN7: 200 | BO7: 200 | BP7: 300 | BQ7: 100 | BR7: 500 | BS7: 500 | BT7: 200 | BU7: 200 | BV7: 300 | BW7: 100 | BX7: 500 | BY7: 500 | BZ7: 200 | CA7: 200 | CB7: 300 | CC7: 100 | CD7: 500 | CE7: 500 | CF7: 200 | CG7: 200 | CH7: 300 | CI7: 100 | CJ7: 500 | EA7: 2700 | EB7: 1500 | EC7: 1300 | ED7: 1600 | EE7: 1000 | EF7: 2700 | EL7: 2100 | EM7: 1500 | EN7: 1800 | EO7: 1800 | EP7: 1800 | EQ7: 1800 | ER7: 0 | ES7: 0 | ET7: 0 | EU7: 0 | EV7: 0 | EW7: 0 | FA7: 10800 | FB7: 33000
A8: 7 | B8: A | C8: 113 | D8: Surender Bhadana | E8: Male | F8: Rasiwas, Bhiwandi | G8: Bawal, Haryana | H8: 122054 | I8: 2020-05-06T06:55:48 | AA8: lqjsUnz HkMkuk | AB8: jklhokl] fHkokaMh | AC8: ckoy] gfj;k.kk | AD8: 122054 | BA8: 200 | BB8: 300 | BC8: 100 | BD8: 1500 | BE8: 100 | BF8: 500 | BG8: 200 | BH8: 300 | BI8: 100 | BJ8: 1500 | BK8: 100 | BL8: 500 | BM8: 200 | BN8: 300 | BO8: 100 | BP8: 1500 | BQ8: 100 | BR8: 500 | BS8: 200 | BT8: 300 | BU8: 100 | BV8: 1500 | BW8: 100 | BX8: 500 | BY8: 200 | BZ8: 300 | CA8: 100 | CB8: 1500 | CC8: 100 | CD8: 500 | CE8: 200 | CF8: 300 | CG8: 100 | CH8: 1500 | CI8: 100 | CJ8: 500 | EA8: 1200 | EB8: 1800 | EC8: 600 | ED8: 9000 | EE8: 600 | EF8: 3000 | EL8: 2700 | EM8: 2700 | EN8: 2700 | EO8: 2700 | EP8: 2700 | EQ8: 2700 | ER8: 0 | ES8: 0 | ET8: 0 | EU8: 0 | EV8: 0 | EW8: 0 | FA8: 16200 | FB8: 33000
A9: 8 | B9: A | C9: 202 | D9: Ronny Screwala | E9: Male | F9: Mumbadevi Road, | G9: Mumbai, Maharashtra | H9: 400520 | I9: 2020-03-06T17:35:59 | AA9: jkWUuh Ldzqokyk | AB9: eqEcknsoh jksM | AC9: eqEcbZ] egkjk"Vz | AD9: 400520 | BA9: 500 | BB9: 200 | BC9: 300 | BD9: 200 | BE9: 100 | BF9: 1000 | BG9: 500 | BH9: 200 | BI9: 300 | BJ9: 200 | BK9: 100 | BL9: 100 | BM9: 500 | BN9: 200 | BO9: 300 | BP9: 200 | BQ9: 100 | BR9: 100 | BS9: 500 | BT9: 200 | BU9: 300 | BV9: 200 | BW9: 100 | BX9: 100 | BY9: 500 | BZ9: 200 | CA9: 300 | CB9: 200 | CC9: 100 | CD9: 100 | CE9: 500 | CF9: 200 | CG9: 300 | CH9: 200 | CI9: 100 | CJ9: 100 | EA9: 3000 | EB9: 1200 | EC9: 1800 | ED9: 1200 | EE9: 600 | EF9: 1500 | EL9: 2300 | EM9: 1400 | EN9: 1400 | EO9: 1400 | EP9: 1400 | EQ9: 1400 | ER9: 0 | ES9: 0 | ET9: 0 | EU9: 0 | EV9: 0 | EW9: 0 | FA9: 9300 | FB9: 33000
A10: 9 | B10: B | C10: 112 | D10: Ranjit Singh | E10: Male | F10: Airforce Station Area | G10: Suratgarh, Rajasthan | H10: 302423 | I10: 2020-05-06T06:57:35 | AA10: jathr flag | AB10: ,;jQkslZ LVs'ku ,fj;k | AC10: lqjrx<+] jktLFkku | AD10: 302423 | BA10: 1000 | BB10: 1000 | BC10: 500 | BD10: 1500 | BE10: 200 | BF10: 100 | BG10: 1000 | BH10: 1000 | BI10: 500 | BJ10: 1500 | BK10: 200 | BL10: 100 | BM10: 1000 | BN10: 1000 | BO10: 500 | BP10: 1500 | BQ10: 200 | BR10: 100 | BS10: 1000 | BT10: 1000 | BU10: 500 | BV10: 1500 | BW10: 200 | BX10: 100 | BY10: 1000 | BZ10: 1000 | CA10: 500 | CB10: 1500 | CC10: 200 | CD10: 100 | CE10: 10 | CI10: 200 | EA10: 5010 | EB10: 5000 | EC10: 2500 | ED10: 7500 | EE10: 1200 | EF10: 500 | EL10: 4300 | EM10: 4300 | EN10: 4300 | EO10: 4300 | EP10: 4300 | EQ10: 210 | ER10: 0 | ES10: 0 | ET10: 0 | EU10: 0 | EV10: 0 | EW10: 0 | FA10: 21710 | FB10: 33000
A11: =ROW()-1 -> 10 | B11: A | C11: 114 | D11: Dudhwa Dahiya | E11: Male | F11: G T Karnal Byepass | G11: Karnal, Haryana | H11: 122334 | I11: 09-06-2020 07:42:59 | AD11: 122334 | BA11: 1000 | BB11: 500 | BC11: 200 | BD11: 1500 | BE11: 100 | BF11: 500 | BG11: 1000 | BH11: 500 | BI11: 200 | BJ11: 1500 | BK11: 100 | BL11: 500 | BM11: 1000 | BN11: 500 | BO11: 200 | BP11: 1500 | BQ11: 100 | BR11: 500 | BS11: 1000 | BT11: 500 | BU11: 200 | BV11: 1500 | BW11: 100 | BX11: 500 | BY11: 1000 | BZ11: 500 | CA11: 200 | CB11: 1500 | CC11: 100 | CD11: 500 | CE11: 1000 | CF11: 500 | CG11: 200 | CH11: 1500 | CI11: 100 | CJ11: 500 | EA11: 6000 | EB11: 3000 | EC11: 1200 | ED11: 9000 | EE11: 600 | EF11: 3000 | EL11: 3800 | EM11: 3800 | EN11: 3800 | EO11: 3800 | EP11: 3800 | EQ11: 3800 | ER11: 0 | ES11: 0 | ET11: 0 | EU11: 0 | EV11: 0 | EW11: 0 | FA11: 22800 | FB11: 33000
A12: =ROW()-1 -> 11 | B12: A | C12: 115 | D12: Paneerwa Dahiya | E12: Male | F12: Bijwasan, Kapshera Border | G12: Delhi | H12: 110037 | I12: 09-06-2020 07:43:22 | AA12: iuhjok nfg;k | AB12: fctoklu] dkilgsjk ckWMZj | AC12: fnYyh | AD12: 110037 | BA12: 1000 | BB12: 500 | BC12: 200 | BD12: 1500 | BE12: 100 | BF12: 100 | BG12: 1000 | BH12: 500 | BI12: 200 | BJ12: 1500 | BK12: 100 | BL12: 100 | BM12: 1000 | BN12: 500 | BO12: 200 | BP12: 1500 | BQ12: 100 | BR12: 100 | BS12: 1000 | BT12: 500 | BU12: 200 | BV12: 1500 | BW12: 100 | BX12: 100 | BY12: 1000 | BZ12: 500 | CA12: 200 | CB12: 1500 | CC12: 100 | CD12: 100 | CE12: 10 | CF12: 500 | EA12: 5010 | EB12: 3000 | EC12: 1000 | ED12: 7500 | EE12: 500 | EF12: 500 | EL12: 3400 | EM12: 3400 | EN12: 3400 | EO12: 3400 | EP12: 3400 | EQ12: 510 | ER12: 0 | ES12: 0 | ET12: 0 | EU12: 0 | EV12: 0 | EW12: 0 | FA12: 17510 | FB12: 33000
A13: =ROW()-1 -> 12 | B13: A | C13: 116 | D13: Bijoy Murmu | E13: Male | F13: Murmu Village, Murunda | G13: Giridih, Jharkhand | H13: 814001 | I13: 09-06-2020 07:43:41 | AA13: fctks; eqeqZ | AB13: eqeqZ xkWao] eq:UMk | AC13: fxfjMhg] >kj[kaM | AD13: 814001 | BA13: 1000 | BB13: 500 | BC13: 200 | BD13: 1500 | BE13: 100 | BF13: 100 | BG13: 1000 | BH13: 500 | BI13: 200 | BJ13: 1500 | BK13: 100 | BL13: 100 | BM13: 1500 | BN13: 500 | BO13: 200 | BP13: 1000 | BQ13: 100 | BR13: 100 | BS13: 1000 | BT13: 500 | BU13: 200 | BV13: 1500 | BW13: 100 | BX13: 100 | BY13: 1000 | BZ13: 500 | CA13: 200 | CB13: 1500 | CC13: 100 | CD13: 100 | CE13: 1000 | CF13: 500 | CG13: 200 | CH13: 1500 | CI13: 100 | CJ13: 100 | EA13: 6500 | EB13: 3000 | EC13: 1200 | ED13: 8500 | EE13: 600 | EF13: 600 | EL13: 3400 | EM13: 3400 | EN13: 3400 | EO13: 3400 | EP13: 3400 | EQ13: 3400 | ER13: 0 | ES13: 0 | ET13: 0 | EU13: 0 | EV13: 0 | EW13: 0 | FA13: 20400 | FB13: 33000
A14: =ROW()-1 -> 13 | B14: B | C14: 209 | D14: Canning Lokhande | E14: Male | F14: Panipat | G14: Karnal, Haryana | H14: 122335 | I14: 2020-05-06T19:32:21 | AA14: dsfuax yks[kaMs | AB14: ikuhir | AC14: djuky] gfj;k.kk | AD14: 122335 | BA14: 500 | BB14: 200 | BC14: 100 | BD14: 300 | BE14: 100 | BF14: 500 | BG14: 500 | BH14: 200 | BI14: 100 | BJ14: 300 | BK14: 100 | BL14: 500 | BM14: 500 | BN14: 200 | BO14: 100 | BP14: 300 | BQ14: 100 | BR14: 500 | BS14: 500 | BT14: 200 | BU14: 100 | BV14: 300 | BW14: 100 | BX14: 500 | BY14: 500 | BZ14: 200 | CA14: 100 | CB14: 300 | CC14: 100 | CD14: 500 | CE14: 500 | CF14: 200 | CG14: 100 | CH14: 300 | CI14: 100 | CJ14: 500 | EA14: 3000 | EB14: 1200 | EC14: 600 | ED14: 1800 | EE14: 600 | EF14: 3000 | EL14: 1700 | EM14: 1700 | EN14: 1700 | EO14: 1700 | EP14: 1700 | EQ14: 1700 | ER14: 0 | ES14: 0 | ET14: 0 | EU14: 0 | EV14: 0 | EW14: 0 | FA14: 10200 | FB14: 33000
A15: 14 | B15: A | C15: 210 | D15: Harpreet Chadda | E15: Male | F15: Nazafagarh | G15: Delhi | H15: 110009 | I15: 2020-05-06T19:33:07 | AA15: gjizhr pM~Mk | AB15: utQx<+ | AC15: fnYyh | AD15: 110009 | BA15: 1000 | BB15: 1000 | BC15: 200 | BD15: 100 | BE15: 300 | BF15: 400 | BG15: 1000 | BH15: 1000 | BI15: 200 | BJ15: 100 | BK15: 300 | BL15: 400 | BM15: 1000 | BN15: 1000 | BO15: 200 | BP15: 100 | BQ15: 300 | BR15: 400 | BS15: 1000 | BT15: 1000 | BU15: 200 | BV15: 100 | BW15: 300 | BX15: 400 | BY15: 1000 | BZ15: 1000 | CA15: 200 | CB15: 100 | CC15: 300 | CD15: 400 | CE15: 1000 | CF15: 1000 | CG15: 200 | CH15: 100 | CI15: 300 | CJ15: 400 | EA15: 6000 | EB15: 6000 | EC15: 1200 | ED15: 600 | EE15: 1800 | EF15: 2400 | EL15: 3000 | EM15: 3000 | EN15: 3000 | EO15: 3000 | EP15: 3000 | EQ15: 3000 | ER15: 0 | ES15: 0 | ET15: 0 | EU15: 0 | EV15: 0 | EW15: 0 | FA15: 18000 | FB15: 33000
A16: =ROW()-1 -> 15 | B16: C | C16: 305 | D16: MKSPS Arya | E16: Male | F16: C-2085, R K Puram | G16: New Delhi | H16: 110039 | I16: 09-06-2020 07:44:17 | AA16: ,eds,lih,l vk;kZ | AB16: lh&2085] vkj ds iqje | AC16: ubZ fnYyh | AD16: 110039 | BA16: 500 | BB16: 200 | BC16: 300 | BD16: 300 | BE16: 300 | BF16: 100 | CE16: 500 | CF16: 1000 | CG16: 2000 | CH16: 100 | CI16: 200 | CJ16: 300 | EA16: =BA16+BG16+BM16+BS16+BY16+CE16+CK16+CQ16+CW16+DC16+DI16+DO16 -> 1000 | EB16: =BB16+BH16+BN16+BT16+BZ16+CF16+CL16+CR16+CX16+DD16+DJ16+DP16 -> 1200 | EC16: =BC16+BI16+BO16+BU16+CA16+CG16+CM16+CS16+CY16+DE16+DK16+DQ16 -> 2300 | ED16: =BD16+BJ16+BP16+BV16+CB16+CH16+CN16+CT16+CZ16+DF16+DL16+DR16 -> 400 | EE16: =BE16+BK16+BQ16+BW16+CC16+CI16+CO16+CU16+DA16+DG16+DM16+DS16 -> 500 | EF16: =BF16+BL16+BR16+BX16+CD16+CJ16+CP16+CV16+DB16+DH16+DN16+DT16 -> 400 | EL16: =SUM(BA16:BF16) -> 1700 | EM16: =SUM(BG16:BL16) -> 0 | EN16: =SUM(BM16:BR16) -> 0 | EO16: =SUM(BS16:BX16) -> 0 | EP16: =SUM(BY16:CD16) -> 0 | EQ16: =SUM(CE16:CJ16) -> 4100 | ER16: =SUM(CK16:CP16) -> 0 | ES16: =SUM(CQ16:CV16) -> 0 | ET16: =SUM(CW16:DB16) -> 0 | EU16: =SUM(DC16:DH16) -> 0 | EV16: =SUM(DI16:DN16) -> 0 | EW16: =SUM(DO16:DT16) -> 0 | FA16: =SUM(EL16:EZ16) -> 5800 | FB16: 33000
A17: 16 | B17: A | C17: 304 | D17: Prem Singhania | E17: Male | F17: Sector-128 | G17: Bahadurgarh, Punjab | H17: 132102 | I17: 2020-05-06T19:33:28 | AD17: 132102 | EA17: 0 | EB17: 0 | EC17: 0 | ED17: 0 | EE17: 0 | EF17: 0 | EL17: 0 | EM17: 0 | EN17: 0 | EO17: 0 | EP17: 0 | EQ17: 0 | ER17: 0 | ES17: 0 | ET17: 0 | EU17: 0 | EV17: 0 | EW17: 0 | FA17: 0 | FB17: 33000
A18: 17 | B18: A | C18: 305 | D18: Tamanna Mazumdar | E18: Female | F18: WZ-125, Ramjas Marg | G18: Karol Bagh, Delhi | H18: 110007 | I18: 2020-05-06T19:28:19 | AD18: 110007 | EA18: 0 | EB18: 0 | EC18: 0 | ED18: 0 | EE18: 0 | EF18: 0 | EL18: 0 | EM18: 0 | EN18: 0 | EO18: 0 | EP18: 0 | EQ18: 0 | ER18: 0 | ES18: 0 | ET18: 0 | EU18: 0 | EV18: 0 | EW18: 0 | FA18: 0 | FB18: 33000
A19: 18 | B19: B | C19: 306 | D19: Naresh Somnathan | E19: Male | F19: IMT Manesar | G19: Gurugram, Haryana | H19: 122024 | I19: 2020-05-06T19:30:12 | AD19: 122024 | EA19: 0 | EB19: 0 | EC19: 0 | ED19: 0 | EE19: 0 | EF19: 0 | EL19: 0 | EM19: 0 | EN19: 0 | EO19: 0 | EP19: 0 | EQ19: 0 | ER19: 0 | ES19: 0 | ET19: 0 | EU19: 0 | EV19: 0 | EW19: 0 | FA19: 0 | FB19: 33000
A20: =ROW()-1 -> 19 | B20: B | C20: 222 | D20: Samantha Chitragatham | E20: Male | F20: 123, Turipurram, Kokannam | G20: Chennai, Tamilnadu | H20: 600015 | I20: 06-06-2020 11:12:30 | AD20: 600015 | CE20: 5000 | CF20: 300 | CG20: 200 | CH20: 200 | CI20: 500 | CJ20: 600 | EA20: 5000 | EB20: 300 | EC20: 200 | ED20: 200 | EE20: 500 | EF20: 600 | EL20: 0 | EM20: 0 | EN20: 0 | EO20: 0 | EP20: 0 | EQ20: 6800 | ER20: 0 | ES20: 0 | ET20: 0 | EU20: 0 | EV20: 0 | EW20: 0 | FA20: 6800 | FB20: 33000
A21: =ROW()-1 -> 20 | B21: C | C21: 333 | D21: Hardavandu Devan | E21: Male | F21: 1325, Bumbardia Complex | G21: Juhu, Mumbai, Maharastra | H21: 400325 | I21: 06-06-2020 11:14:36 | AD21: 400325 | CE21: 5000 | CF21: 300 | CG21: 200 | CH21: 200 | CI21: 500 | CJ21: 600 | EA21: 5000 | EB21: 300 | EC21: 200 | ED21: 200 | EE21: 500 | EF21: 600 | EL21: 0 | EM21: 0 | EN21: 0 | EO21: 0 | EP21: 0 | EQ21: 6800 | ER21: 0 | ES21: 0 | ET21: 0 | EU21: 0 | EV21: 0 | EW21: 0 | FA21: 6800 | FB21: 33000
A22: =ROW()-1 -> 21 | B22: C | C22: 310 | D22: Anil Kumar Supras | E22: Male | F22: Below Hotel Raddyson, Rose Park | G22: Massoorie, UttraKhand | H22: 234200 | I22: 06-06-2020 16:10:39 | AD22: 234200 | CE22: 2000 | CF22: 300 | CG22: 500 | CH22: 500 | CI22: 600 | CJ22: 200 | EA22: 2000 | EB22: 300 | EC22: 500 | ED22: 500 | EE22: 600 | EF22: 200 | EL22: 0 | EM22: 0 | EN22: 0 | EO22: 0 | EP22: 0 | EQ22: 4100 | ER22: 0 | ES22: 0 | ET22: 0 | EU22: 0 | EV22: 0 | EW22: 0 | FA22: 4100 | FB22: 33000
A23: =ROW()-1 -> 22 | B23: C | C23: 306 | D23: Dhirender Kasana | E23: Male | F23: Crusher Zone, Surajkund Road | G23: Gwalpahari, Faridabad, Haryana | H23: 122012 | I23: 06-06-2020 17:19:55 | AD23: 122012 | EA23: 0 | EB23: 0 | EC23: 0 | ED23: 0 | EE23: 0 | EF23: 0 | EL23: 0 | EM23: 0 | EN23: 0 | EO23: 0 | EP23: 0 | EQ23: 0 | ER23: 0 | ES23: 0 | ET23: 0 | EU23: 0 | EV23: 0 | EW23: 0 | FA23: 0 | FB23: 33000
EA24: 0 | EB24: 0 | EC24: 0 | ED24: 0 | EE24: 0 | EF24: 0 | EL24: 0 | EM24: 0 | EN24: 0 | EO24: 0 | EP24: 0 | EQ24: 0 | ER24: 0 | ES24: 0 | ET24: 0 | EU24: 0 | EV24: 0 | EW24: 0 | FA24: 0
EA25: 0 | EB25: 0 | EC25: 0 | ED25: 0 | EE25: 0 | EF25: 0 | EL25: 0 | EM25: 0 | EN25: 0 | EO25: 0 | EP25: 0 | EQ25: 0 | ER25: 0 | ES25: 0 | ET25: 0 | EU25: 0 | EV25: 0 | EW25: 0 | FA25: 0
EA26: 0 | EB26: 0 | EC26: 0 | ED26: 0 | EE26: 0 | EF26: 0 | EL26: 0 | EM26: 0 | EN26: 0 | EO26: 0 | EP26: 0 | EQ26: 0 | ER26: 0 | ES26: 0 | ET26: 0 | EU26: 0 | EV26: 0 | EW26: 0 | FA26: 0
EA27: 0 | EB27: 0 | EC27: 0 | ED27: 0 | EE27: 0 | EF27: 0 | EL27: 0 | EM27: 0 | EN27: 0 | EO27: 0 | EP27: 0 | EQ27: 0 | ER27: 0 | ES27: 0 | ET27: 0 | EU27: 0 | EV27: 0 | EW27: 0 | FA27: 0
EA28: 0 | EB28: 0 | EC28: 0 | ED28: 0 | EE28: 0 | EF28: 0 | EL28: 0 | EM28: 0 | EN28: 0 | EO28: 0 | EP28: 0 | EQ28: 0 | ER28: 0 | ES28: 0 | ET28: 0 | EU28: 0 | EV28: 0 | EW28: 0 | FA28: 0
EA29: 0 | EB29: 0 | EC29: 0 | ED29: 0 | EE29: 0 | EF29: 0 | EL29: 0 | EM29: 0 | EN29: 0 | EO29: 0 | EP29: 0 | EQ29: 0 | ER29: 0 | ES29: 0 | ET29: 0 | EU29: 0 | EV29: 0 | EW29: 0 | FA29: 0
EA30: 0 | EB30: 0 | EC30: 0 | ED30: 0 | EE30: 0 | EF30: 0 | EL30: 0 | EM30: 0 | EN30: 0 | EO30: 0 | EP30: 0 | EQ30: 0 | ER30: 0 | ES30: 0 | ET30: 0 | EU30: 0 | EV30: 0 | EW30: 0 | FA30: 0
EA31: 0 | EB31: 0 | EC31: 0 | ED31: 0 | EE31: 0 | EF31: 0 | EL31: 0 | EM31: 0 | EN31: 0 | EO31: 0 | EP31: 0 | EQ31: 0 | ER31: 0 | ES31: 0 | ET31: 0 | EU31: 0 | EV31: 0 | EW31: 0 | FA31: 0
EA32: 0 | EB32: 0 | EC32: 0 | ED32: 0 | EE32: 0 | EF32: 0 | EL32: 0 | EM32: 0 | EN32: 0 | EO32: 0 | EP32: 0 | EQ32: 0 | ER32: 0 | ES32: 0 | ET32: 0 | EU32: 0 | EV32: 0 | EW32: 0 | FA32: 0
EA33: 0 | EB33: 0 | EC33: 0 | ED33: 0 | EE33: 0 | EF33: 0 | EL33: 0 | EM33: 0 | EN33: 0 | EO33: 0 | EP33: 0 | EQ33: 0 | ER33: 0 | ES33: 0 | ET33: 0 | EU33: 0 | EV33: 0 | EW33: 0 | FA33: 0
EA34: 0 | EB34: 0 | EC34: 0 | ED34: 0 | EE34: 0 | EF34: 0 | EL34: 0 | EM34: 0 | EN34: 0 | EO34: 0 | EP34: 0 | EQ34: 0 | ER34: 0 | ES34: 0 | ET34: 0 | EU34: 0 | EV34: 0 | EW34: 0 | FA34: 0
EA35: 0 | EB35: 0 | EC35: 0 | ED35: 0 | EE35: 0 | EF35: 0 | EL35: 0 | EM35: 0 | EN35: 0 | EO35: 0 | EP35: 0 | EQ35: 0 | ER35: 0 | ES35: 0 | ET35: 0 | EU35: 0 | EV35: 0 | EW35: 0 | FA35: 0
EA36: 0 | EB36: 0 | EC36: 0 | ED36: 0 | EE36: 0 | EF36: 0 | EL36: 0 | EM36: 0 | EN36: 0 | EO36: 0 | EP36: 0 | EQ36: 0 | ER36: 0 | ES36: 0 | ET36: 0 | EU36: 0 | EV36: 0 | EW36: 0 | FA36: 0
EA37: 0 | EB37: 0 | EC37: 0 | ED37: 0 | EE37: 0 | EF37: 0 | EL37: 0 | EM37: 0 | EN37: 0 | EO37: 0 | EP37: 0 | EQ37: 0 | ER37: 0 | ES37: 0 | ET37: 0 | EU37: 0 | EV37: 0 | EW37: 0 | FA37: 0
EA38: 0 | EB38: 0 | EC38: 0 | ED38: 0 | EE38: 0 | EF38: 0 | EL38: 0 | EM38: 0 | EN38: 0 | EO38: 0 | EP38: 0 | EQ38: 0 | ER38: 0 | ES38: 0 | ET38: 0 | EU38: 0 | EV38: 0 | EW38: 0 | FA38: 0
EA39: 0 | EB39: 0 | EC39: 0 | ED39: 0 | EE39: 0 | EF39: 0 | EL39: 0 | EM39: 0 | EN39: 0 | EO39: 0 | EP39: 0 | EQ39: 0 | ER39: 0 | ES39: 0 | ET39: 0 | EU39: 0 | EV39: 0 | EW39: 0 | FA39: 0
EA40: 0 | EB40: 0 | EC40: 0 | ED40: 0 | EE40: 0 | EF40: 0 | EL40: 0 | EM40: 0 | EN40: 0 | EO40: 0 | EP40: 0 | EQ40: 0 | ER40: 0 | ES40: 0 | ET40: 0 | EU40: 0 | EV40: 0 | EW40: 0 | FA40: 0
EA41: 0 | EB41: 0 | EC41: 0 | ED41: 0 | EE41: 0 | EF41: 0 | EL41: 0 | EM41: 0 | EN41: 0 | EO41: 0 | EP41: 0 | EQ41: 0 | ER41: 0 | ES41: 0 | ET41: 0 | EU41: 0 | EV41: 0 | EW41: 0 | FA41: 0
EA42: 0 | EB42: 0 | EC42: 0 | ED42: 0 | EE42: 0 | EF42: 0 | EL42: 0 | EM42: 0 | EN42: 0 | EO42: 0 | EP42: 0 | EQ42: 0 | ER42: 0 | ES42: 0 | ET42: 0 | EU42: 0 | EV42: 0 | EW42: 0 | FA42: 0
EA43: 0 | EB43: 0 | EC43: 0 | ED43: 0 | EE43: 0 | EF43: 0 | EL43: 0 | EM43: 0 | EN43: 0 | EO43: 0 | EP43: 0 | EQ43: 0 | ER43: 0 | ES43: 0 | ET43: 0 | EU43: 0 | EV43: 0 | EW43: 0 | FA43: 0
EA44: 0 | EB44: 0 | EC44: 0 | ED44: 0 | EE44: 0 | EF44: 0 | EL44: 0 | EM44: 0 | EN44: 0 | EO44: 0 | EP44: 0 | EQ44: 0 | ER44: 0 | ES44: 0 | ET44: 0 | EU44: 0 | EV44: 0 | EW44: 0 | FA44: 0
EA45: 0 | EB45: 0 | EC45: 0 | ED45: 0 | EE45: 0 | EF45: 0 | EL45: 0 | EM45: 0 | EN45: 0 | EO45: 0 | EP45: 0 | EQ45: 0 | ER45: 0 | ES45: 0 | ET45: 0 | EU45: 0 | EV45: 0 | EW45: 0 | FA45: 0
EA46: 0 | EB46: 0 | EC46: 0 | ED46: 0 | EE46: 0 | EF46: 0 | EL46: 0 | EM46: 0 | EN46: 0 | EO46: 0 | EP46: 0 | EQ46: 0 | ER46: 0 | ES46: 0 | ET46: 0 | EU46: 0 | EV46: 0 | EW46: 0 | FA46: 0
EA47: 0 | EB47: 0 | EC47: 0 | ED47: 0 | EE47: 0 | EF47: 0 | EL47: 0 | EM47: 0 | EN47: 0 | EO47: 0 | EP47: 0 | EQ47: 0 | ER47: 0 | ES47: 0 | ET47: 0 | EU47: 0 | EV47: 0 | EW47: 0 | FA47: 0
EA48: 0 | EB48: 0 | EC48: 0 | ED48: 0 | EE48: 0 | EF48: 0 | EL48: 0 | EM48: 0 | EN48: 0 | EO48: 0 | EP48: 0 | EQ48: 0 | ER48: 0 | ES48: 0 | ET48: 0 | EU48: 0 | EV48: 0 | EW48: 0 | FA48: 0
EA49: 0 | EB49: 0 | EC49: 0 | ED49: 0 | EE49: 0 | EF49: 0 | EL49: 0 | EM49: 0 | EN49: 0 | EO49: 0 | EP49: 0 | EQ49: 0 | ER49: 0 | ES49: 0 | ET49: 0 | EU49: 0 | EV49: 0 | EW49: 0 | FA49: 0
EA50: 0 | EB50: 0 | EC50: 0 | ED50: 0 | EE50: 0 | EF50: 0 | EL50: 0 | EM50: 0 | EN50: 0 | EO50: 0 | EP50: 0 | EQ50: 0 | ER50: 0 | ES50: 0 | ET50: 0 | EU50: 0 | EV50: 0 | EW50: 0 | FA50: 0
EA51: 0 | EB51: 0 | EC51: 0 | ED51: 0 | EE51: 0 | EF51: 0 | EL51: 0 | EM51: 0 | EN51: 0 | EO51: 0 | EP51: 0 | EQ51: 0 | ER51: 0 | ES51: 0 | ET51: 0 | EU51: 0 | EV51: 0 | EW51: 0 | FA51: 0
EA52: 0 | EB52: 0 | EC52: 0 | ED52: 0 | EE52: 0 | EF52: 0 | EL52: 0 | EM52: 0 | EN52: 0 | EO52: 0 | EP52: 0 | EQ52: 0 | ER52: 0 | ES52: 0 | ET52: 0 | EU52: 0 | EV52: 0 | EW52: 0 | FA52: 0
EA53: 0 | EB53: 0 | EC53: 0 | ED53: 0 | EE53: 0 | EF53: 0 | EL53: 0 | EM53: 0 | EN53: 0 | EO53: 0 | EP53: 0 | EQ53: 0 | ER53: 0 | ES53: 0 | ET53: 0 | EU53: 0 | EV53: 0 | EW53: 0 | FA53: 0
EA54: 0 | EB54: 0 | EC54: 0 | ED54: 0 | EE54: 0 | EF54: 0 | EL54: 0 | EM54: 0 | EN54: 0 | EO54: 0 | EP54: 0 | EQ54: 0 | ER54: 0 | ES54: 0 | ET54: 0 | EU54: 0 | EV54: 0 | EW54: 0 | FA54: 0
EA55: 0 | EB55: 0 | EC55: 0 | ED55: 0 | EE55: 0 | EF55: 0 | EL55: 0 | EM55: 0 | EN55: 0 | EO55: 0 | EP55: 0 | EQ55: 0 | ER55: 0 | ES55: 0 | ET55: 0 | EU55: 0 | EV55: 0 | EW55: 0 | FA55: 0
EA56: 0 | EB56: 0 | EC56: 0 | ED56: 0 | EE56: 0 | EF56: 0 | EL56: 0 | EM56: 0 | EN56: 0 | EO56: 0 | EP56: 0 | EQ56: 0 | ER56: 0 | ES56: 0 | ET56: 0 | EU56: 0 | EV56: 0 | EW56: 0 | FA56: 0
EA57: 0 | EB57: 0 | EC57: 0 | ED57: 0 | EE57: 0 | EF57: 0 | EL57: 0 | EM57: 0 | EN57: 0 | EO57: 0 | EP57: 0 | EQ57: 0 | ER57: 0 | ES57: 0 | ET57: 0 | EU57: 0 | EV57: 0 | EW57: 0 | FA57: 0
EA58: 0 | EB58: 0 | EC58: 0 | ED58: 0 | EE58: 0 | EF58: 0 | EL58: 0 | EM58: 0 | EN58: 0 | EO58: 0 | EP58: 0 | EQ58: 0 | ER58: 0 | ES58: 0 | ET58: 0 | EU58: 0 | EV58: 0 | EW58: 0 | FA58: 0
EA59: 0 | EB59: 0 | EC59: 0 | ED59: 0 | EE59: 0 | EF59: 0 | EL59: 0 | EM59: 0 | EN59: 0 | EO59: 0 | EP59: 0 | EQ59: 0 | ER59: 0 | ES59: 0 | ET59: 0 | EU59: 0 | EV59: 0 | EW59: 0 | FA59: 0
EA60: 0 | EB60: 0 | EC60: 0 | ED60: 0 | EE60: 0 | EF60: 0 | EL60: 0 | EM60: 0 | EN60: 0 | EO60: 0 | EP60: 0 | EQ60: 0 | ER60: 0 | ES60: 0 | ET60: 0 | EU60: 0 | EV60: 0 | EW60: 0 | FA60: 0
EA61: 0 | EB61: 0 | EC61: 0 | ED61: 0 | EE61: 0 | EF61: 0 | EL61: 0 | EM61: 0 | EN61: 0 | EO61: 0 | EP61: 0 | EQ61: 0 | ER61: 0 | ES61: 0 | ET61: 0 | EU61: 0 | EV61: 0 | EW61: 0 | FA61: 0
EA62: 0 | EB62: 0 | EC62: 0 | ED62: 0 | EE62: 0 | EF62: 0 | EL62: 0 | EM62: 0 | EN62: 0 | EO62: 0 | EP62: 0 | EQ62: 0 | ER62: 0 | ES62: 0 | ET62: 0 | EU62: 0 | EV62: 0 | EW62: 0 | FA62: 0
EA63: 0 | EB63: 0 | EC63: 0 | ED63: 0 | EE63: 0 | EF63: 0 | EL63: 0 | EM63: 0 | EN63: 0 | EO63: 0 | EP63: 0 | EQ63: 0 | ER63: 0 | ES63: 0 | ET63: 0 | EU63: 0 | EV63: 0 | EW63: 0 | FA63: 0
EA64: 0 | EB64: 0 | EC64: 0 | ED64: 0 | EE64: 0 | EF64: 0 | EL64: 0 | EM64: 0 | EN64: 0 | EO64: 0 | EP64: 0 | EQ64: 0 | ER64: 0 | ES64: 0 | ET64: 0 | EU64: 0 | EV64: 0 | EW64: 0 | FA64: 0
EA65: 0 | EB65: 0 | EC65: 0 | ED65: 0 | EE65: 0 | EF65: 0 | EL65: 0 | EM65: 0 | EN65: 0 | EO65: 0 | EP65: 0 | EQ65: 0 | ER65: 0 | ES65: 0 | ET65: 0 | EU65: 0 | EV65: 0 | EW65: 0 | FA65: 0
EA66: 0 | EB66: 0 | EC66: 0 | ED66: 0 | EE66: 0 | EF66: 0 | EL66: 0 | EM66: 0 | EN66: 0 | EO66: 0 | EP66: 0 | EQ66: 0 | ER66: 0 | ES66: 0 | ET66: 0 | EU66: 0 | EV66: 0 | EW66: 0 | FA66: 0
EA67: 0 | EB67: 0 | EC67: 0 | ED67: 0 | EE67: 0 | EF67: 0 | EL67: 0 | EM67: 0 | EN67: 0 | EO67: 0 | EP67: 0 | EQ67: 0 | ER67: 0 | ES67: 0 | ET67: 0 | EU67: 0 | EV67: 0 | EW67: 0 | FA67: 0
EA68: 0 | EB68: 0 | EC68: 0 | ED68: 0 | EE68: 0 | EF68: 0 | EL68: 0 | EM68: 0 | EN68: 0 | EO68: 0 | EP68: 0 | EQ68: 0 | ER68: 0 | ES68: 0 | ET68: 0 | EU68: 0 | EV68: 0 | EW68: 0 | FA68: 0
EA69: 0 | EB69: 0 | EC69: 0 | ED69: 0 | EE69: 0 | EF69: 0 | EL69: 0 | EM69: 0 | EN69: 0 | EO69: 0 | EP69: 0 | EQ69: 0 | ER69: 0 | ES69: 0 | ET69: 0 | EU69: 0 | EV69: 0 | EW69: 0 | FA69: 0
EA70: 0 | EB70: 0 | EC70: 0 | ED70: 0 | EE70: 0 | EF70: 0 | EL70: 0 | EM70: 0 | EN70: 0 | EO70: 0 | EP70: 0 | EQ70: 0 | ER70: 0 | ES70: 0 | ET70: 0 | EU70: 0 | EV70: 0 | EW70: 0 | FA70: 0
EA71: 0 | EB71: 0 | EC71: 0 | ED71: 0 | EE71: 0 | EF71: 0 | EL71: 0 | EM71: 0 | EN71: 0 | EO71: 0 | EP71: 0 | EQ71: 0 | ER71: 0 | ES71: 0 | ET71: 0 | EU71: 0 | EV71: 0 | EW71: 0 | FA71: 0
EA72: 0 | EB72: 0 | EC72: 0 | ED72: 0 | EE72: 0 | EF72: 0 | EL72: 0 | EM72: 0 | EN72: 0 | EO72: 0 | EP72: 0 | EQ72: 0 | ER72: 0 | ES72: 0 | ET72: 0 | EU72: 0 | EV72: 0 | EW72: 0 | FA72: 0
EA73: 0 | EB73: 0 | EC73: 0 | ED73: 0 | EE73: 0 | EF73: 0 | EL73: 0 | EM73: 0 | EN73: 0 | EO73: 0 | EP73: 0 | EQ73: 0 | ER73: 0 | ES73: 0 | ET73: 0 | EU73: 0 | EV73: 0 | EW73: 0 | FA73: 0
EA74: 0 | EB74: 0 | EC74: 0 | ED74: 0 | EE74: 0 | EF74: 0 | EL74: 0 | EM74: 0 | EN74: 0 | EO74: 0 | EP74: 0 | EQ74: 0 | ER74: 0 | ES74: 0 | ET74: 0 | EU74: 0 | EV74: 0 | EW74: 0 | FA74: 0
EA75: 0 | EB75: 0 | EC75: 0 | ED75: 0 | EE75: 0 | EF75: 0 | EL75: 0 | EM75: 0 | EN75: 0 | EO75: 0 | EP75: 0 | EQ75: 0 | ER75: 0 | ES75: 0 | ET75: 0 | EU75: 0 | EV75: 0 | EW75: 0 | FA75: 0
EA76: 0 | EB76: 0 | EC76: 0 | ED76: 0 | EE76: 0 | EF76: 0 | EL76: 0 | EM76: 0 | EN76: 0 | EO76: 0 | EP76: 0 | EQ76: 0 | ER76: 0 | ES76: 0 | ET76: 0 | EU76: 0 | EV76: 0 | EW76: 0 | FA76: 0
EA77: 0 | EB77: 0 | EC77: 0 | ED77: 0 | EE77: 0 | EF77: 0 | EL77: 0 | EM77: 0 | EN77: 0 | EO77: 0 | EP77: 0 | EQ77: 0 | ER77: 0 | ES77: 0 | ET77: 0 | EU77: 0 | EV77: 0 | EW77: 0 | FA77: 0
EA78: =BA78+BG78+BM78+BS78+BY78+CE78+CK78+CQ78+CW78+DC78+DI78+DO78 -> 0 | EB78: =BB78+BH78+BN78+BT78+BZ78+CF78+CL78+CR78+CX78+DD78+DJ78+DP78 -> 0 | EC78: =BC78+BI78+BO78+BU78+CA78+CG78+CM78+CS78+CY78+DE78+DK78+DQ78 -> 0 | ED78: =BD78+BJ78+BP78+BV78+CB78+CH78+CN78+CT78+CZ78+DF78+DL78+DR78 -> 0 | EE78: =BE78+BK78+BQ78+BW78+CC78+CI78+CO78+CU78+DA78+DG78+DM78+DS78 -> 0 | EF78: =BF78+BL78+BR78+BX78+CD78+CJ78+CP78+CV78+DB78+DH78+DN78+DT78 -> 0 | EL78: =SUM(BA78:BF78) -> 0 | EM78: =SUM(BG78:BL78) -> 0 | EN78: =SUM(BM78:BR78) -> 0 | EO78: =SUM(BS78:BX78) -> 0 | EP78: =SUM(BY78:CD78) -> 0 | EQ78: =SUM(CE78:CJ78) -> 0 | ER78: =SUM(CK78:CP78) -> 0 | ES78: =SUM(CQ78:CV78) -> 0 | ET78: =SUM(CW78:DB78) -> 0 | EU78: =SUM(DC78:DH78) -> 0 | EV78: =SUM(DI78:DN78) -> 0 | EW78: =SUM(DO78:DT78) -> 0 | FA78: =SUM(EL78:EZ78) -> 0
EA79: 0 | EB79: 0 | EC79: 0 | ED79: 0 | EE79: 0 | EF79: 0 | EL79: 0 | EM79: 0 | EN79: 0 | EO79: 0 | EP79: 0 | EQ79: 0 | ER79: 0 | ES79: 0 | ET79: 0 | EU79: 0 | EV79: 0 | EW79: 0 | FA79: 0
EA80: 0 | EB80: 0 | EC80: 0 | ED80: 0 | EE80: 0 | EF80: 0 | EL80: 0 | EM80: 0 | EN80: 0 | EO80: 0 | EP80: 0 | EQ80: 0 | ER80: 0 | ES80: 0 | ET80: 0 | EU80: 0 | EV80: 0 | EW80: 0 | FA80: 0
EA81: 0 | EB81: 0 | EC81: 0 | ED81: 0 | EE81: 0 | EF81: 0 | EL81: 0 | EM81: 0 | EN81: 0 | EO81: 0 | EP81: 0 | EQ81: 0 | ER81: 0 | ES81: 0 | ET81: 0 | EU81: 0 | EV81: 0 | EW81: 0 | FA81: 0
EA82: 0 | EB82: 0 | EC82: 0 | ED82: 0 | EE82: 0 | EF82: 0 | EL82: 0 | EM82: 0 | EN82: 0 | EO82: 0 | EP82: 0 | EQ82: 0 | ER82: 0 | ES82: 0 | ET82: 0 | EU82: 0 | EV82: 0 | EW82: 0 | FA82: 0
EA83: 0 | EB83: 0 | EC83: 0 | ED83: 0 | EE83: 0 | EF83: 0 | EL83: 0 | EM83: 0 | EN83: 0 | EO83: 0 | EP83: 0 | EQ83: 0 | ER83: 0 | ES83: 0 | ET83: 0 | EU83: 0 | EV83: 0 | EW83: 0 | FA83: 0
EA84: 0 | EB84: 0 | EC84: 0 | ED84: 0 | EE84: 0 | EF84: 0 | EL84: 0 | EM84: 0 | EN84: 0 | EO84: 0 | EP84: 0 | EQ84: 0 | ER84: 0 | ES84: 0 | ET84: 0 | EU84: 0 | EV84: 0 | EW84: 0 | FA84: 0
EA85: 0 | EB85: 0 | EC85: 0 | ED85: 0 | EE85: 0 | EF85: 0 | EL85: 0 | EM85: 0 | EN85: 0 | EO85: 0 | EP85: 0 | EQ85: 0 | ER85: 0 | ES85: 0 | ET85: 0 | EU85: 0 | EV85: 0 | EW85: 0 | FA85: 0
EA86: 0 | EB86: 0 | EC86: 0 | ED86: 0 | EE86: 0 | EF86: 0 | EL86: 0 | EM86: 0 | EN86: 0 | EO86: 0 | EP86: 0 | EQ86: 0 | ER86: 0 | ES86: 0 | ET86: 0 | EU86: 0 | EV86: 0 | EW86: 0 | FA86: 0
EA87: 0 | EB87: 0 | EC87: 0 | ED87: 0 | EE87: 0 | EF87: 0 | EL87: 0 | EM87: 0 | EN87: 0 | EO87: 0 | EP87: 0 | EQ87: 0 | ER87: 0 | ES87: 0 | ET87: 0 | EU87: 0 | EV87: 0 | EW87: 0 | FA87: 0
EA88: 0 | EB88: 0 | EC88: 0 | ED88: 0 | EE88: 0 | EF88: 0 | EL88: 0 | EM88: 0 | EN88: 0 | EO88: 0 | EP88: 0 | EQ88: 0 | ER88: 0 | ES88: 0 | ET88: 0 | EU88: 0 | EV88: 0 | EW88: 0 | FA88: 0
EA89: 0 | EB89: 0 | EC89: 0 | ED89: 0 | EE89: 0 | EF89: 0 | EL89: 0 | EM89: 0 | EN89: 0 | EO89: 0 | EP89: 0 | EQ89: 0 | ER89: 0 | ES89: 0 | ET89: 0 | EU89: 0 | EV89: 0 | EW89: 0 | FA89: 0
EA90: 0 | EB90: 0 | EC90: 0 | ED90: 0 | EE90: 0 | EF90: 0 | EL90: 0 | EM90: 0 | EN90: 0 | EO90: 0 | EP90: 0 | EQ90: 0 | ER90: 0 | ES90: 0 | ET90: 0 | EU90: 0 | EV90: 0 | EW90: 0 | FA90: 0
EA91: 0 | EB91: 0 | EC91: 0 | ED91: 0 | EE91: 0 | EF91: 0 | EL91: 0 | EM91: 0 | EN91: 0 | EO91: 0 | EP91: 0 | EQ91: 0 | ER91: 0 | ES91: 0 | ET91: 0 | EU91: 0 | EV91: 0 | EW91: 0 | FA91: 0
EA92: 0 | EB92: 0 | EC92: 0 | ED92: 0 | EE92: 0 | EF92: 0 | EL92: 0 | EM92: 0 | EN92: 0 | EO92: 0 | EP92: 0 | EQ92: 0 | ER92: 0 | ES92: 0 | ET92: 0 | EU92: 0 | EV92: 0 | EW92: 0 | FA92: 0
EA93: 0 | EB93: 0 | EC93: 0 | ED93: 0 | EE93: 0 | EF93: 0 | EL93: 0 | EM93: 0 | EN93: 0 | EO93: 0 | EP93: 0 | EQ93: 0 | ER93: 0 | ES93: 0 | ET93: 0 | EU93: 0 | EV93: 0 | EW93: 0 | FA93: 0
EA94: 0 | EB94: 0 | EC94: 0 | ED94: 0 | EE94: 0 | EF94: 0 | EL94: 0 | EM94: 0 | EN94: 0 | EO94: 0 | EP94: 0 | EQ94: 0 | ER94: 0 | ES94: 0 | ET94: 0 | EU94: 0 | EV94: 0 | EW94: 0 | FA94: 0
EA95: 0 | EB95: 0 | EC95: 0 | ED95: 0 | EE95: 0 | EF95: 0 | EL95: 0 | EM95: 0 | EN95: 0 | EO95: 0 | EP95: 0 | EQ95: 0 | ER95: 0 | ES95: 0 | ET95: 0 | EU95: 0 | EV95: 0 | EW95: 0 | FA95: 0
EA96: 0 | EB96: 0 | EC96: 0 | ED96: 0 | EE96: 0 | EF96: 0 | EL96: 0 | EM96: 0 | EN96: 0 | EO96: 0 | EP96: 0 | EQ96: 0 | ER96: 0 | ES96: 0 | ET96: 0 | EU96: 0 | EV96: 0 | EW96: 0 | FA96: 0
EA97: 0 | EB97: 0 | EC97: 0 | ED97: 0 | EE97: 0 | EF97: 0 | EL97: 0 | EM97: 0 | EN97: 0 | EO97: 0 | EP97: 0 | EQ97: 0 | ER97: 0 | ES97: 0 | ET97: 0 | EU97: 0 | EV97: 0 | EW97: 0 | FA97: 0
EA98: 0 | EB98: 0 | EC98: 0 | ED98: 0 | EE98: 0 | EF98: 0 | EL98: 0 | EM98: 0 | EN98: 0 | EO98: 0 | EP98: 0 | EQ98: 0 | ER98: 0 | ES98: 0 | ET98: 0 | EU98: 0 | EV98: 0 | EW98: 0 | FA98: 0
EA99: 0 | EB99: 0 | EC99: 0 | ED99: 0 | EE99: 0 | EF99: 0 | EL99: 0 | EM99: 0 | EN99: 0 | EO99: 0 | EP99: 0 | EQ99: 0 | ER99: 0 | ES99: 0 | ET99: 0 | EU99: 0 | EV99: 0 | EW99: 0 | FA99: 0
EA100: 0 | EB100: 0 | EC100: 0 | ED100: 0 | EE100: 0 | EF100: 0 | EL100: 0 | EM100: 0 | EN100: 0 | EO100: 0 | EP100: 0 | EQ100: 0 | ER100: 0 | ES100: 0 | ET100: 0 | EU100: 0 | EV100: 0 | EW100: 0 | FA100: 0
EA101: 0 | EB101: 0 | EC101: 0 | ED101: 0 | EE101: 0 | EF101: 0 | EL101: 0 | EM101: 0 | EN101: 0 | EO101: 0 | EP101: 0 | EQ101: 0 | ER101: 0 | ES101: 0 | ET101: 0 | EU101: 0 | EV101: 0 | EW101: 0 | FA101: 0
EA102: 0 | EB102: 0 | EC102: 0 | ED102: 0 | EE102: 0 | EF102: 0 | EL102: 0 | EM102: 0 | EN102: 0 | EO102: 0 | EP102: 0 | EQ102: 0 | ER102: 0 | ES102: 0 | ET102: 0 | EU102: 0 | EV102: 0 | EW102: 0 | FA102: 0
EA103: 0 | EB103: 0 | EC103: 0 | ED103: 0 | EE103: 0 | EF103: 0 | EL103: 0 | EM103: 0 | EN103: 0 | EO103: 0 | EP103: 0 | EQ103: 0 | ER103: 0 | ES103: 0 | ET103: 0 | EU103: 0 | EV103: 0 | EW103: 0 | FA103: 0
EA104: 0 | EB104: 0 | EC104: 0 | ED104: 0 | EE104: 0 | EF104: 0 | EL104: 0 | EM104: 0 | EN104: 0 | EO104: 0 | EP104: 0 | EQ104: 0 | ER104: 0 | ES104: 0 | ET104: 0 | EU104: 0 | EV104: 0 | EW104: 0 | FA104: 0
EA105: 0 | EB105: 0 | EC105: 0 | ED105: 0 | EE105: 0 | EF105: 0 | EL105: 0 | EM105: 0 | EN105: 0 | EO105: 0 | EP105: 0 | EQ105: 0 | ER105: 0 | ES105: 0 | ET105: 0 | EU105: 0 | EV105: 0 | EW105: 0 | FA105: 0
EA106: 0 | EB106: 0 | EC106: 0 | ED106: 0 | EE106: 0 | EF106: 0 | EL106: 0 | EM106: 0 | EN106: 0 | EO106: 0 | EP106: 0 | EQ106: 0 | ER106: 0 | ES106: 0 | ET106: 0 | EU106: 0 | EV106: 0 | EW106: 0 | FA106: 0
EA107: 0 | EB107: 0 | EC107: 0 | ED107: 0 | EE107: 0 | EF107: 0 | EL107: 0 | EM107: 0 | EN107: 0 | EO107: 0 | EP107: 0 | EQ107: 0 | ER107: 0 | ES107: 0 | ET107: 0 | EU107: 0 | EV107: 0 | EW107: 0 | FA107: 0
EA108: 0 | EB108: 0 | EC108: 0 | ED108: 0 | EE108: 0 | EF108: 0 | EL108: 0 | EM108: 0 | EN108: 0 | EO108: 0 | EP108: 0 | EQ108: 0 | ER108: 0 | ES108: 0 | ET108: 0 | EU108: 0 | EV108: 0 | EW108: 0 | FA108: 0
EA109: 0 | EB109: 0 | EC109: 0 | ED109: 0 | EE109: 0 | EF109: 0 | EL109: 0 | EM109: 0 | EN109: 0 | EO109: 0 | EP109: 0 | EQ109: 0 | ER109: 0 | ES109: 0 | ET109: 0 | EU109: 0 | EV109: 0 | EW109: 0 | FA109: 0
EA110: 0 | EB110: 0 | EC110: 0 | ED110: 0 | EE110: 0 | EF110: 0 | EL110: 0 | EM110: 0 | EN110: 0 | EO110: 0 | EP110: 0 | EQ110: 0 | ER110: 0 | ES110: 0 | ET110: 0 | EU110: 0 | EV110: 0 | EW110: 0 | FA110: 0
EA111: 0 | EB111: 0 | EC111: 0 | ED111: 0 | EE111: 0 | EF111: 0 | EL111: 0 | EM111: 0 | EN111: 0 | EO111: 0 | EP111: 0 | EQ111: 0 | ER111: 0 | ES111: 0 | ET111: 0 | EU111: 0 | EV111: 0 | EW111: 0 | FA111: 0
EA112: 0 | EB112: 0 | EC112: 0 | ED112: 0 | EE112: 0 | EF112: 0 | EL112: 0 | EM112: 0 | EN112: 0 | EO112: 0 | EP112: 0 | EQ112: 0 | ER112: 0 | ES112: 0 | ET112: 0 | EU112: 0 | EV112: 0 | EW112: 0 | FA112: 0
EA113: 0 | EB113: 0 | EC113: 0 | ED113: 0 | EE113: 0 | EF113: 0 | EL113: 0 | EM113: 0 | EN113: 0 | EO113: 0 | EP113: 0 | EQ113: 0 | ER113: 0 | ES113: 0 | ET113: 0 | EU113: 0 | EV113: 0 | EW113: 0 | FA113: 0
EA114: 0 | EB114: 0 | EC114: 0 | ED114: 0 | EE114: 0 | EF114: 0 | EL114: 0 | EM114: 0 | EN114: 0 | EO114: 0 | EP114: 0 | EQ114: 0 | ER114: 0 | ES114: 0 | ET114: 0 | EU114: 0 | EV114: 0 | EW114: 0 | FA114: 0
EA115: 0 | EB115: 0 | EC115: 0 | ED115: 0 | EE115: 0 | EF115: 0 | EL115: 0 | EM115: 0 | EN115: 0 | EO115: 0 | EP115: 0 | EQ115: 0 | ER115: 0 | ES115: 0 | ET115: 0 | EU115: 0 | EV115: 0 | EW115: 0 | FA115: 0
EA116: 0 | EB116: 0 | EC116: 0 | ED116: 0 | EE116: 0 | EF116: 0 | EL116: 0 | EM116: 0 | EN116: 0 | EO116: 0 | EP116: 0 | EQ116: 0 | ER116: 0 | ES116: 0 | ET116: 0 | EU116: 0 | EV116: 0 | EW116: 0 | FA116: 0
EA117: 0 | EB117: 0 | EC117: 0 | ED117: 0 | EE117: 0 | EF117: 0 | EL117: 0 | EM117: 0 | EN117: 0 | EO117: 0 | EP117: 0 | EQ117: 0 | ER117: 0 | ES117: 0 | ET117: 0 | EU117: 0 | EV117: 0 | EW117: 0 | FA117: 0
EA118: 0 | EB118: 0 | EC118: 0 | ED118: 0 | EE118: 0 | EF118: 0 | EL118: 0 | EM118: 0 | EN118: 0 | EO118: 0 | EP118: 0 | EQ118: 0 | ER118: 0 | ES118: 0 | ET118: 0 | EU118: 0 | EV118: 0 | EW118: 0 | FA118: 0
EA119: 0 | EB119: 0 | EC119: 0 | ED119: 0 | EE119: 0 | EF119: 0 | EL119: 0 | EM119: 0 | EN119: 0 | EO119: 0 | EP119: 0 | EQ119: 0 | ER119: 0 | ES119: 0 | ET119: 0 | EU119: 0 | EV119: 0 | EW119: 0 | FA119: 0
EA120: 0 | EB120: 0 | EC120: 0 | ED120: 0 | EE120: 0 | EF120: 0 | EL120: 0 | EM120: 0 | EN120: 0 | EO120: 0 | EP120: 0 | EQ120: 0 | ER120: 0 | ES120: 0 | ET120: 0 | EU120: 0 | EV120: 0 | EW120: 0 | FA120: 0
EA121: 0 | EB121: 0 | EC121: 0 | ED121: 0 | EE121: 0 | EF121: 0 | EL121: 0 | EM121: 0 | EN121: 0 | EO121: 0 | EP121: 0 | EQ121: 0 | ER121: 0 | ES121: 0 | ET121: 0 | EU121: 0 | EV121: 0 | EW121: 0 | FA121: 0
EA122: 0 | EB122: 0 | EC122: 0 | ED122: 0 | EE122: 0 | EF122: 0 | EL122: 0 | EM122: 0 | EN122: 0 | EO122: 0 | EP122: 0 | EQ122: 0 | ER122: 0 | ES122: 0 | ET122: 0 | EU122: 0 | EV122: 0 | EW122: 0 | FA122: 0
EA123: 0 | EB123: 0 | EC123: 0 | ED123: 0 | EE123: 0 | EF123: 0 | EL123: 0 | EM123: 0 | EN123: 0 | EO123: 0 | EP123: 0 | EQ123: 0 | ER123: 0 | ES123: 0 | ET123: 0 | EU123: 0 | EV123: 0 | EW123: 0 | FA123: 0
EA124: 0 | EB124: 0 | EC124: 0 | ED124: 0 | EE124: 0 | EF124: 0 | EL124: 0 | EM124: 0 | EN124: 0 | EO124: 0 | EP124: 0 | EQ124: 0 | ER124: 0 | ES124: 0 | ET124: 0 | EU124: 0 | EV124: 0 | EW124: 0 | FA124: 0
EA125: 0 | EB125: 0 | EC125: 0 | ED125: 0 | EE125: 0 | EF125: 0 | EL125: 0 | EM125: 0 | EN125: 0 | EO125: 0 | EP125: 0 | EQ125: 0 | ER125: 0 | ES125: 0 | ET125: 0 | EU125: 0 | EV125: 0 | EW125: 0 | FA125: 0
EA126: 0 | EB126: 0 | EC126: 0 | ED126: 0 | EE126: 0 | EF126: 0 | EL126: 0 | EM126: 0 | EN126: 0 | EO126: 0 | EP126: 0 | EQ126: 0 | ER126: 0 | ES126: 0 | ET126: 0 | EU126: 0 | EV126: 0 | EW126: 0 | FA126: 0
EA127: 0 | EB127: 0 | EC127: 0 | ED127: 0 | EE127: 0 | EF127: 0 | EL127: 0 | EM127: 0 | EN127: 0 | EO127: 0 | EP127: 0 | EQ127: 0 | ER127: 0 | ES127: 0 | ET127: 0 | EU127: 0 | EV127: 0 | EW127: 0 | FA127: 0
EA128: 0 | EB128: 0 | EC128: 0 | ED128: 0 | EE128: 0 | EF128: 0 | EL128: 0 | EM128: 0 | EN128: 0 | EO128: 0 | EP128: 0 | EQ128: 0 | ER128: 0 | ES128: 0 | ET128: 0 | EU128: 0 | EV128: 0 | EW128: 0 | FA128: 0
EA129: 0 | EB129: 0 | EC129: 0 | ED129: 0 | EE129: 0 | EF129: 0 | EL129: 0 | EM129: 0 | EN129: 0 | EO129: 0 | EP129: 0 | EQ129: 0 | ER129: 0 | ES129: 0 | ET129: 0 | EU129: 0 | EV129: 0 | EW129: 0 | FA129: 0
EA130: 0 | EB130: 0 | EC130: 0 | ED130: 0 | EE130: 0 | EF130: 0 | EL130: 0 | EM130: 0 | EN130: 0 | EO130: 0 | EP130: 0 | EQ130: 0 | ER130: 0 | ES130: 0 | ET130: 0 | EU130: 0 | EV130: 0 | EW130: 0 | FA130: 0
EA131: 0 | EB131: 0 | EC131: 0 | ED131: 0 | EE131: 0 | EF131: 0 | EL131: 0 | EM131: 0 | EN131: 0 | EO131: 0 | EP131: 0 | EQ131: 0 | ER131: 0 | ES131: 0 | ET131: 0 | EU131: 0 | EV131: 0 | EW131: 0 | FA131: 0
EA132: 0 | EB132: 0 | EC132: 0 | ED132: 0 | EE132: 0 | EF132: 0 | EL132: 0 | EM132: 0 | EN132: 0 | EO132: 0 | EP132: 0 | EQ132: 0 | ER132: 0 | ES132: 0 | ET132: 0 | EU132: 0 | EV132: 0 | EW132: 0 | FA132: 0
EA133: 0 | EB133: 0 | EC133: 0 | ED133: 0 | EE133: 0 | EF133: 0 | EL133: 0 | EM133: 0 | EN133: 0 | EO133: 0 | EP133: 0 | EQ133: 0 | ER133: 0 | ES133: 0 | ET133: 0 | EU133: 0 | EV133: 0 | EW133: 0 | FA133: 0
EA134: 0 | EB134: 0 | EC134: 0 | ED134: 0 | EE134: 0 | EF134: 0 | EL134: 0 | EM134: 0 | EN134: 0 | EO134: 0 | EP134: 0 | EQ134: 0 | ER134: 0 | ES134: 0 | ET134: 0 | EU134: 0 | EV134: 0 | EW134: 0 | FA134: 0
EA135: 0 | EB135: 0 | EC135: 0 | ED135: 0 | EE135: 0 | EF135: 0 | EL135: 0 | EM135: 0 | EN135: 0 | EO135: 0 | EP135: 0 | EQ135: 0 | ER135: 0 | ES135: 0 | ET135: 0 | EU135: 0 | EV135: 0 | EW135: 0 | FA135: 0
EA136: 0 | EB136: 0 | EC136: 0 | ED136: 0 | EE136: 0 | EF136: 0 | EL136: 0 | EM136: 0 | EN136: 0 | EO136: 0 | EP136: 0 | EQ136: 0 | ER136: 0 | ES136: 0 | ET136: 0 | EU136: 0 | EV136: 0 | EW136: 0 | FA136: 0
EA137: 0 | EB137: 0 | EC137: 0 | ED137: 0 | EE137: 0 | EF137: 0 | EL137: 0 | EM137: 0 | EN137: 0 | EO137: 0 | EP137: 0 | EQ137: 0 | ER137: 0 | ES137: 0 | ET137: 0 | EU137: 0 | EV137: 0 | EW137: 0 | FA137: 0
EA138: 0 | EB138: 0 | EC138: 0 | ED138: 0 | EE138: 0 | EF138: 0 | EL138: 0 | EM138: 0 | EN138: 0 | EO138: 0 | EP138: 0 | EQ138: 0 | ER138: 0 | ES138: 0 | ET138: 0 | EU138: 0 | EV138: 0 | EW138: 0 | FA138: 0
EA139: 0 | EB139: 0 | EC139: 0 | ED139: 0 | EE139: 0 | EF139: 0 | EL139: 0 | EM139: 0 | EN139: 0 | EO139: 0 | EP139: 0 | EQ139: 0 | ER139: 0 | ES139: 0 | ET139: 0 | EU139: 0 | EV139: 0 | EW139: 0 | FA139: 0
EA140: 0 | EB140: 0 | EC140: 0 | ED140: 0 | EE140: 0 | EF140: 0 | EL140: 0 | EM140: 0 | EN140: 0 | EO140: 0 | EP140: 0 | EQ140: 0 | ER140: 0 | ES140: 0 | ET140: 0 | EU140: 0 | EV140: 0 | EW140: 0 | FA140: 0
EA141: 0 | EB141: 0 | EC141: 0 | ED141: 0 | EE141: 0 | EF141: 0 | EL141: 0 | EM141: 0 | EN141: 0 | EO141: 0 | EP141: 0 | EQ141: 0 | ER141: 0 | ES141: 0 | ET141: 0 | EU141: 0 | EV141: 0 | EW141: 0 | FA141: 0
EA142: =BA142+BG142+BM142+BS142+BY142+CE142+CK142+CQ142+CW142+DC142+DI142+DO142 -> 0 | EB142: =BB142+BH142+BN142+BT142+BZ142+CF142+CL142+CR142+CX142+DD142+DJ142+DP142 -> 0 | EC142: =BC142+BI142+BO142+BU142+CA142+CG142+CM142+CS142+CY142+DE142+DK142+DQ142 -> 0 | ED142: =BD142+BJ142+BP142+BV142+CB142+CH142+CN142+CT142+CZ142+DF142+DL142+DR142 -> 0 | EE142: =BE142+BK142+BQ142+BW142+CC142+CI142+CO142+CU142+DA142+DG142+DM142+DS142 -> 0 | EF142: =BF142+BL142+BR142+BX142+CD142+CJ142+CP142+CV142+DB142+DH142+DN142+DT142 -> 0 | EL142: =SUM(BA142:BF142) -> 0 | EM142: =SUM(BG142:BL142) -> 0 | EN142: =SUM(BM142:BR142) -> 0 | EO142: =SUM(BS142:BX142) -> 0 | EP142: =SUM(BY142:CD142) -> 0 | EQ142: =SUM(CE142:CJ142) -> 0 | ER142: =SUM(CK142:CP142) -> 0 | ES142: =SUM(CQ142:CV142) -> 0 | ET142: =SUM(CW142:DB142) -> 0 | EU142: =SUM(DC142:DH142) -> 0 | EV142: =SUM(DI142:DN142) -> 0 | EW142: =SUM(DO142:DT142) -> 0 | FA142: =SUM(EL142:EZ142) -> 0
EA143: 0 | EB143: 0 | EC143: 0 | ED143: 0 | EE143: 0 | EF143: 0 | EL143: 0 | EM143: 0 | EN143: 0 | EO143: 0 | EP143: 0 | EQ143: 0 | ER143: 0 | ES143: 0 | ET143: 0 | EU143: 0 | EV143: 0 | EW143: 0 | FA143: 0
EA144: 0 | EB144: 0 | EC144: 0 | ED144: 0 | EE144: 0 | EF144: 0 | EL144: 0 | EM144: 0 | EN144: 0 | EO144: 0 | EP144: 0 | EQ144: 0 | ER144: 0 | ES144: 0 | ET144: 0 | EU144: 0 | EV144: 0 | EW144: 0 | FA144: 0
EA145: 0 | EB145: 0 | EC145: 0 | ED145: 0 | EE145: 0 | EF145: 0 | EL145: 0 | EM145: 0 | EN145: 0 | EO145: 0 | EP145: 0 | EQ145: 0 | ER145: 0 | ES145: 0 | ET145: 0 | EU145: 0 | EV145: 0 | EW145: 0 | FA145: 0
EA146: 0 | EB146: 0 | EC146: 0 | ED146: 0 | EE146: 0 | EF146: 0 | EL146: 0 | EM146: 0 | EN146: 0 | EO146: 0 | EP146: 0 | EQ146: 0 | ER146: 0 | ES146: 0 | ET146: 0 | EU146: 0 | EV146: 0 | EW146: 0 | FA146: 0
EA147: 0 | EB147: 0 | EC147: 0 | ED147: 0 | EE147: 0 | EF147: 0 | EL147: 0 | EM147: 0 | EN147: 0 | EO147: 0 | EP147: 0 | EQ147: 0 | ER147: 0 | ES147: 0 | ET147: 0 | EU147: 0 | EV147: 0 | EW147: 0 | FA147: 0
EA148: 0 | EB148: 0 | EC148: 0 | ED148: 0 | EE148: 0 | EF148: 0 | EL148: 0 | EM148: 0 | EN148: 0 | EO148: 0 | EP148: 0 | EQ148: 0 | ER148: 0 | ES148: 0 | ET148: 0 | EU148: 0 | EV148: 0 | EW148: 0 | FA148: 0
EA149: 0 | EB149: 0 | EC149: 0 | ED149: 0 | EE149: 0 | EF149: 0 | EL149: 0 | EM149: 0 | EN149: 0 | EO149: 0 | EP149: 0 | EQ149: 0 | ER149: 0 | ES149: 0 | ET149: 0 | EU149: 0 | EV149: 0 | EW149: 0 | FA149: 0
EA150: 0 | EB150: 0 | EC150: 0 | ED150: 0 | EE150: 0 | EF150: 0 | EL150: 0 | EM150: 0 | EN150: 0 | EO150: 0 | EP150: 0 | EQ150: 0 | ER150: 0 | ES150: 0 | ET150: 0 | EU150: 0 | EV150: 0 | EW150: 0 | FA150: 0
EA151: 0 | EB151: 0 | EC151: 0 | ED151: 0 | EE151: 0 | EF151: 0 | EL151: 0 | EM151: 0 | EN151: 0 | EO151: 0 | EP151: 0 | EQ151: 0 | ER151: 0 | ES151: 0 | ET151: 0 | EU151: 0 | EV151: 0 | EW151: 0 | FA151: 0
EA152: 0 | EB152: 0 | EC152: 0 | ED152: 0 | EE152: 0 | EF152: 0 | EL152: 0 | EM152: 0 | EN152: 0 | EO152: 0 | EP152: 0 | EQ152: 0 | ER152: 0 | ES152: 0 | ET152: 0 | EU152: 0 | EV152: 0 | EW152: 0 | FA152: 0
EA153: 0 | EB153: 0 | EC153: 0 | ED153: 0 | EE153: 0 | EF153: 0 | EL153: 0 | EM153: 0 | EN153: 0 | EO153: 0 | EP153: 0 | EQ153: 0 | ER153: 0 | ES153: 0 | ET153: 0 | EU153: 0 | EV153: 0 | EW153: 0 | FA153: 0
EA154: 0 | EB154: 0 | EC154: 0 | ED154: 0 | EE154: 0 | EF154: 0 | EL154: 0 | EM154: 0 | EN154: 0 | EO154: 0 | EP154: 0 | EQ154: 0 | ER154: 0 | ES154: 0 | ET154: 0 | EU154: 0 | EV154: 0 | EW154: 0 | FA154: 0
EA155: 0 | EB155: 0 | EC155: 0 | ED155: 0 | EE155: 0 | EF155: 0 | EL155: 0 | EM155: 0 | EN155: 0 | EO155: 0 | EP155: 0 | EQ155: 0 | ER155: 0 | ES155: 0 | ET155: 0 | EU155: 0 | EV155: 0 | EW155: 0 | FA155: 0
EA156: 0 | EB156: 0 | EC156: 0 | ED156: 0 | EE156: 0 | EF156: 0 | EL156: 0 | EM156: 0 | EN156: 0 | EO156: 0 | EP156: 0 | EQ156: 0 | ER156: 0 | ES156: 0 | ET156: 0 | EU156: 0 | EV156: 0 | EW156: 0 | FA156: 0
EA157: 0 | EB157: 0 | EC157: 0 | ED157: 0 | EE157: 0 | EF157: 0 | EL157: 0 | EM157: 0 | EN157: 0 | EO157: 0 | EP157: 0 | EQ157: 0 | ER157: 0 | ES157: 0 | ET157: 0 | EU157: 0 | EV157: 0 | EW157: 0 | FA157: 0
EA158: 0 | EB158: 0 | EC158: 0 | ED158: 0 | EE158: 0 | EF158: 0 | EL158: 0 | EM158: 0 | EN158: 0 | EO158: 0 | EP158: 0 | EQ158: 0 | ER158: 0 | ES158: 0 | ET158: 0 | EU158: 0 | EV158: 0 | EW158: 0 | FA158: 0
EA159: 0 | EB159: 0 | EC159: 0 | ED159: 0 | EE159: 0 | EF159: 0 | EL159: 0 | EM159: 0 | EN159: 0 | EO159: 0 | EP159: 0 | EQ159: 0 | ER159: 0 | ES159: 0 | ET159: 0 | EU159: 0 | EV159: 0 | EW159: 0 | FA159: 0
EA160: 0 | EB160: 0 | EC160: 0 | ED160: 0 | EE160: 0 | EF160: 0 | EL160: 0 | EM160: 0 | EN160: 0 | EO160: 0 | EP160: 0 | EQ160: 0 | ER160: 0 | ES160: 0 | ET160: 0 | EU160: 0 | EV160: 0 | EW160: 0 | FA160: 0
EA161: 0 | EB161: 0 | EC161: 0 | ED161: 0 | EE161: 0 | EF161: 0 | EL161: 0 | EM161: 0 | EN161: 0 | EO161: 0 | EP161: 0 | EQ161: 0 | ER161: 0 | ES161: 0 | ET161: 0 | EU161: 0 | EV161: 0 | EW161: 0 | FA161: 0
EA162: 0 | EB162: 0 | EC162: 0 | ED162: 0 | EE162: 0 | EF162: 0 | EL162: 0 | EM162: 0 | EN162: 0 | EO162: 0 | EP162: 0 | EQ162: 0 | ER162: 0 | ES162: 0 | ET162: 0 | EU162: 0 | EV162: 0 | EW162: 0 | FA162: 0
EA163: 0 | EB163: 0 | EC163: 0 | ED163: 0 | EE163: 0 | EF163: 0 | EL163: 0 | EM163: 0 | EN163: 0 | EO163: 0 | EP163: 0 | EQ163: 0 | ER163: 0 | ES163: 0 | ET163: 0 | EU163: 0 | EV163: 0 | EW163: 0 | FA163: 0
EA164: 0 | EB164: 0 | EC164: 0 | ED164: 0 | EE164: 0 | EF164: 0 | EL164: 0 | EM164: 0 | EN164: 0 | EO164: 0 | EP164: 0 | EQ164: 0 | ER164: 0 | ES164: 0 | ET164: 0 | EU164: 0 | EV164: 0 | EW164: 0 | FA164: 0
EA165: 0 | EB165: 0 | EC165: 0 | ED165: 0 | EE165: 0 | EF165: 0 | EL165: 0 | EM165: 0 | EN165: 0 | EO165: 0 | EP165: 0 | EQ165: 0 | ER165: 0 | ES165: 0 | ET165: 0 | EU165: 0 | EV165: 0 | EW165: 0 | FA165: 0
EA166: 0 | EB166: 0 | EC166: 0 | ED166: 0 | EE166: 0 | EF166: 0 | EL166: 0 | EM166: 0 | EN166: 0 | EO166: 0 | EP166: 0 | EQ166: 0 | ER166: 0 | ES166: 0 | ET166: 0 | EU166: 0 | EV166: 0 | EW166: 0 | FA166: 0
EA167: 0 | EB167: 0 | EC167: 0 | ED167: 0 | EE167: 0 | EF167: 0 | EL167: 0 | EM167: 0 | EN167: 0 | EO167: 0 | EP167: 0 | EQ167: 0 | ER167: 0 | ES167: 0 | ET167: 0 | EU167: 0 | EV167: 0 | EW167: 0 | FA167: 0
EA168: 0 | EB168: 0 | EC168: 0 | ED168: 0 | EE168: 0 | EF168: 0 | EL168: 0 | EM168: 0 | EN168: 0 | EO168: 0 | EP168: 0 | EQ168: 0 | ER168: 0 | ES168: 0 | ET168: 0 | EU168: 0 | EV168: 0 | EW168: 0 | FA168: 0
EA169: 0 | EB169: 0 | EC169: 0 | ED169: 0 | EE169: 0 | EF169: 0 | EL169: 0 | EM169: 0 | EN169: 0 | EO169: 0 | EP169: 0 | EQ169: 0 | ER169: 0 | ES169: 0 | ET169: 0 | EU169: 0 | EV169: 0 | EW169: 0 | FA169: 0
EA170: 0 | EB170: 0 | EC170: 0 | ED170: 0 | EE170: 0 | EF170: 0 | EL170: 0 | EM170: 0 | EN170: 0 | EO170: 0 | EP170: 0 | EQ170: 0 | ER170: 0 | ES170: 0 | ET170: 0 | EU170: 0 | EV170: 0 | EW170: 0 | FA170: 0
EA171: 0 | EB171: 0 | EC171: 0 | ED171: 0 | EE171: 0 | EF171: 0 | EL171: 0 | EM171: 0 | EN171: 0 | EO171: 0 | EP171: 0 | EQ171: 0 | ER171: 0 | ES171: 0 | ET171: 0 | EU171: 0 | EV171: 0 | EW171: 0 | FA171: 0
EA172: 0 | EB172: 0 | EC172: 0 | ED172: 0 | EE172: 0 | EF172: 0 | EL172: 0 | EM172: 0 | EN172: 0 | EO172: 0 | EP172: 0 | EQ172: 0 | ER172: 0 | ES172: 0 | ET172: 0 | EU172: 0 | EV172: 0 | EW172: 0 | FA172: 0
EA173: 0 | EB173: 0 | EC173: 0 | ED173: 0 | EE173: 0 | EF173: 0 | EL173: 0 | EM173: 0 | EN173: 0 | EO173: 0 | EP173: 0 | EQ173: 0 | ER173: 0 | ES173: 0 | ET173: 0 | EU173: 0 | EV173: 0 | EW173: 0 | FA173: 0
EA174: 0 | EB174: 0 | EC174: 0 | ED174: 0 | EE174: 0 | EF174: 0 | EL174: 0 | EM174: 0 | EN174: 0 | EO174: 0 | EP174: 0 | EQ174: 0 | ER174: 0 | ES174: 0 | ET174: 0 | EU174: 0 | EV174: 0 | EW174: 0 | FA174: 0
EA175: 0 | EB175: 0 | EC175: 0 | ED175: 0 | EE175: 0 | EF175: 0 | EL175: 0 | EM175: 0 | EN175: 0 | EO175: 0 | EP175: 0 | EQ175: 0 | ER175: 0 | ES175: 0 | ET175: 0 | EU175: 0 | EV175: 0 | EW175: 0 | FA175: 0
EA176: 0 | EB176: 0 | EC176: 0 | ED176: 0 | EE176: 0 | EF176: 0 | EL176: 0 | EM176: 0 | EN176: 0 | EO176: 0 | EP176: 0 | EQ176: 0 | ER176: 0 | ES176: 0 | ET176: 0 | EU176: 0 | EV176: 0 | EW176: 0 | FA176: 0
EA177: 0 | EB177: 0 | EC177: 0 | ED177: 0 | EE177: 0 | EF177: 0 | EL177: 0 | EM177: 0 | EN177: 0 | EO177: 0 | EP177: 0 | EQ177: 0 | ER177: 0 | ES177: 0 | ET177: 0 | EU177: 0 | EV177: 0 | EW177: 0 | FA177: 0
EA178: 0 | EB178: 0 | EC178: 0 | ED178: 0 | EE178: 0 | EF178: 0 | EL178: 0 | EM178: 0 | EN178: 0 | EO178: 0 | EP178: 0 | EQ178: 0 | ER178: 0 | ES178: 0 | ET178: 0 | EU178: 0 | EV178: 0 | EW178: 0 | FA178: 0
EA179: 0 | EB179: 0 | EC179: 0 | ED179: 0 | EE179: 0 | EF179: 0 | EL179: 0 | EM179: 0 | EN179: 0 | EO179: 0 | EP179: 0 | EQ179: 0 | ER179: 0 | ES179: 0 | ET179: 0 | EU179: 0 | EV179: 0 | EW179: 0 | FA179: 0
EA180: 0 | EB180: 0 | EC180: 0 | ED180: 0 | EE180: 0 | EF180: 0 | EL180: 0 | EM180: 0 | EN180: 0 | EO180: 0 | EP180: 0 | EQ180: 0 | ER180: 0 | ES180: 0 | ET180: 0 | EU180: 0 | EV180: 0 | EW180: 0 | FA180: 0
EA181: 0 | EB181: 0 | EC181: 0 | ED181: 0 | EE181: 0 | EF181: 0 | EL181: 0 | EM181: 0 | EN181: 0 | EO181: 0 | EP181: 0 | EQ181: 0 | ER181: 0 | ES181: 0 | ET181: 0 | EU181: 0 | EV181: 0 | EW181: 0 | FA181: 0
EA182: 0 | EB182: 0 | EC182: 0 | ED182: 0 | EE182: 0 | EF182: 0 | EL182: 0 | EM182: 0 | EN182: 0 | EO182: 0 | EP182: 0 | EQ182: 0 | ER182: 0 | ES182: 0 | ET182: 0 | EU182: 0 | EV182: 0 | EW182: 0 | FA182: 0
EA183: 0 | EB183: 0 | EC183: 0 | ED183: 0 | EE183: 0 | EF183: 0 | EL183: 0 | EM183: 0 | EN183: 0 | EO183: 0 | EP183: 0 | EQ183: 0 | ER183: 0 | ES183: 0 | ET183: 0 | EU183: 0 | EV183: 0 | EW183: 0 | FA183: 0
EA184: 0 | EB184: 0 | EC184: 0 | ED184: 0 | EE184: 0 | EF184: 0 | EL184: 0 | EM184: 0 | EN184: 0 | EO184: 0 | EP184: 0 | EQ184: 0 | ER184: 0 | ES184: 0 | ET184: 0 | EU184: 0 | EV184: 0 | EW184: 0 | FA184: 0
EA185: 0 | EB185: 0 | EC185: 0 | ED185: 0 | EE185: 0 | EF185: 0 | EL185: 0 | EM185: 0 | EN185: 0 | EO185: 0 | EP185: 0 | EQ185: 0 | ER185: 0 | ES185: 0 | ET185: 0 | EU185: 0 | EV185: 0 | EW185: 0 | FA185: 0
EA186: 0 | EB186: 0 | EC186: 0 | ED186: 0 | EE186: 0 | EF186: 0 | EL186: 0 | EM186: 0 | EN186: 0 | EO186: 0 | EP186: 0 | EQ186: 0 | ER186: 0 | ES186: 0 | ET186: 0 | EU186: 0 | EV186: 0 | EW186: 0 | FA186: 0
EA187: 0 | EB187: 0 | EC187: 0 | ED187: 0 | EE187: 0 | EF187: 0 | EL187: 0 | EM187: 0 | EN187: 0 | EO187: 0 | EP187: 0 | EQ187: 0 | ER187: 0 | ES187: 0 | ET187: 0 | EU187: 0 | EV187: 0 | EW187: 0 | FA187: 0
EA188: 0 | EB188: 0 | EC188: 0 | ED188: 0 | EE188: 0 | EF188: 0 | EL188: 0 | EM188: 0 | EN188: 0 | EO188: 0 | EP188: 0 | EQ188: 0 | ER188: 0 | ES188: 0 | ET188: 0 | EU188: 0 | EV188: 0 | EW188: 0 | FA188: 0
EA189: 0 | EB189: 0 | EC189: 0 | ED189: 0 | EE189: 0 | EF189: 0 | EL189: 0 | EM189: 0 | EN189: 0 | EO189: 0 | EP189: 0 | EQ189: 0 | ER189: 0 | ES189: 0 | ET189: 0 | EU189: 0 | EV189: 0 | EW189: 0 | FA189: 0
EA190: 0 | EB190: 0 | EC190: 0 | ED190: 0 | EE190: 0 | EF190: 0 | EL190: 0 | EM190: 0 | EN190: 0 | EO190: 0 | EP190: 0 | EQ190: 0 | ER190: 0 | ES190: 0 | ET190: 0 | EU190: 0 | EV190: 0 | EW190: 0 | FA190: 0
EA191: 0 | EB191: 0 | EC191: 0 | ED191: 0 | EE191: 0 | EF191: 0 | EL191: 0 | EM191: 0 | EN191: 0 | EO191: 0 | EP191: 0 | EQ191: 0 | ER191: 0 | ES191: 0 | ET191: 0 | EU191: 0 | EV191: 0 | EW191: 0 | FA191: 0
EA192: 0 | EB192: 0 | EC192: 0 | ED192: 0 | EE192: 0 | EF192: 0 | EL192: 0 | EM192: 0 | EN192: 0 | EO192: 0 | EP192: 0 | EQ192: 0 | ER192: 0 | ES192: 0 | ET192: 0 | EU192: 0 | EV192: 0 | EW192: 0 | FA192: 0
EA193: 0 | EB193: 0 | EC193: 0 | ED193: 0 | EE193: 0 | EF193: 0 | EL193: 0 | EM193: 0 | EN193: 0 | EO193: 0 | EP193: 0 | EQ193: 0 | ER193: 0 | ES193: 0 | ET193: 0 | EU193: 0 | EV193: 0 | EW193: 0 | FA193: 0
EA194: 0 | EB194: 0 | EC194: 0 | ED194: 0 | EE194: 0 | EF194: 0 | EL194: 0 | EM194: 0 | EN194: 0 | EO194: 0 | EP194: 0 | EQ194: 0 | ER194: 0 | ES194: 0 | ET194: 0 | EU194: 0 | EV194: 0 | EW194: 0 | FA194: 0
EA195: 0 | EB195: 0 | EC195: 0 | ED195: 0 | EE195: 0 | EF195: 0 | EL195: 0 | EM195: 0 | EN195: 0 | EO195: 0 | EP195: 0 | EQ195: 0 | ER195: 0 | ES195: 0 | ET195: 0 | EU195: 0 | EV195: 0 | EW195: 0 | FA195: 0
EA196: 0 | EB196: 0 | EC196: 0 | ED196: 0 | EE196: 0 | EF196: 0 | EL196: 0 | EM196: 0 | EN196: 0 | EO196: 0 | EP196: 0 | EQ196: 0 | ER196: 0 | ES196: 0 | ET196: 0 | EU196: 0 | EV196: 0 | EW196: 0 | FA196: 0
EA197: 0 | EB197: 0 | EC197: 0 | ED197: 0 | EE197: 0 | EF197: 0 | EL197: 0 | EM197: 0 | EN197: 0 | EO197: 0 | EP197: 0 | EQ197: 0 | ER197: 0 | ES197: 0 | ET197: 0 | EU197: 0 | EV197: 0 | EW197: 0 | FA197: 0
EA198: 0 | EB198: 0 | EC198: 0 | ED198: 0 | EE198: 0 | EF198: 0 | EL198: 0 | EM198: 0 | EN198: 0 | EO198: 0 | EP198: 0 | EQ198: 0 | ER198: 0 | ES198: 0 | ET198: 0 | EU198: 0 | EV198: 0 | EW198: 0 | FA198: 0
EA199: 0 | EB199: 0 | EC199: 0 | ED199: 0 | EE199: 0 | EF199: 0 | EL199: 0 | EM199: 0 | EN199: 0 | EO199: 0 | EP199: 0 | EQ199: 0 | ER199: 0 | ES199: 0 | ET199: 0 | EU199: 0 | EV199: 0 | EW199: 0 | FA199: 0
EA200: 0 | EB200: 0 | EC200: 0 | ED200: 0 | EE200: 0 | EF200: 0 | EL200: 0 | EM200: 0 | EN200: 0 | EO200: 0 | EP200: 0 | EQ200: 0 | ER200: 0 | ES200: 0 | ET200: 0 | EU200: 0 | EV200: 0 | EW200: 0 | FA200: 0
... 198 more rows

Sheet support
AA1: NameHindi | AD1: Pin Code hindi | AZ1: ="Year " &TEXT(NOW(),"yyyy") -> Year 2020 | BA1: TxtExpJanMaintenance | BB1: TxtExpJanElectBill | BC1: TxtExpJanGenerator | BD1: TxtExpJanSecurity | BE1: TxtExpJanCleaner | BF1: TxtExpJanMisc | BG1: Closing Balance | BH1: Opening Balance | BI1: Total Inc | BJ1: Total Exp | CA1: TxtAuthMonth | CB1: TxtAuthYear | CC1: TxtAuthMaintenance | CD1: TxtAuthElectBill | CE1: TxtAuthGenerator | CF1: TxtAuthSecurity | CG1: TxtAuthCleaner | CH1: TxtAuthMisc | CI1: Total | CJ1: No. of month | CK1: Yearly
AZ2: Jan | BA2: 10000 | BB2: 2000 | BC2: 3000 | BD2: 3000 | BE2: 4000 | BF2: 6000 | BG2: 11350 | BH2: 10000 | BI2: 39350 | BJ2: =SUM(BA2:BF2) -> 28000 | CA2: June | CB2: 2020 | CC2: 1500 | CD2: 1000 | CE2: 500 | CF2: 1500 | CG2: 500 | CH2: 500 | CI2: =SUM(CC2:CH2) -> 5500 | CJ2: =IF(CA2="January",1,IF(CA2="February",2,IF(CA2="March",3,IF(CA2="April",4,IF(CA2="May",5,IF(CA2="June",6,IF(CA2="July",7,IF(CA2="August",8,IF(CA2="September",9,IF(CA2="October",10,IF(CA2="November",11,12))))))))))) -> 6 | CK2: =CI2*CJ2 -> 33000
AZ3: Feb | BA3: 20000 | BB3: 15000 | BG3: 200 | BI3: 35200 | BJ3: =SUM(BA3:BF3) -> 35000
AZ4: Mar | BA4: 35000 | BB4: 2000 | BG4: -300 | BI4: 36700 | BJ4: 37000
AZ5: Apr | BA5: 40000 | BG5: -3600 | BI5: 36400 | BJ5: 40000
AZ6: May | BA6: 50000 | BG6: -14400 | BI6: 35600 | BJ6: 50000
AZ7: Jun | BA7: 30000 | BG7: 3320 | BI7: 51020 | BJ7: 30000
AZ8: Jul | BA8: 5000 | BG8: -4995 | BI8: 5 | BJ8: 5000
AZ9: Aug | BA9: 1000 | BG9: -966 | BI9: 34 | BJ9: 1000
AZ10: Sep | BB10: 200 | BG10: -200 | BI10: 0 | BJ10: 200
AZ11: Oct | BG11: 0 | BI11: 0 | BJ11: 0
AZ12: Nov | BG12: 0 | BI12: 0 | BJ12: 0
AZ13: Dec | BG13: 0 | BI13: 0 | BJ13: 0
AZ14: Total | BA14: =SUM(BA2:BA13) -> 191000 | BB14: 19200 | BC14: 3000 | BD14: 3000 | BE14: 4000 | BF14: 6000 | BH14: =BH2+BH3 -> 10000 | BI14: =SUM(BI2:BI13) -> 234309
